Workbook

Sheet Cover Page

Sheet BHS - Manual Balancing Valve (hidden)
B2: Belimo Hydronic Simulator™
B7: =INDEX(Language!$6:$6,MATCH(Language!$H$2,Language!$1:$1,0)) -> Design Settings
B8: =INDEX(Language!$7:$7,MATCH(Language!$H$2,Language!$1:$1,0)) -> Flow per coil | C8: =Data!B15 -> 0.9 | D8: =Data!B14 -> GPM | H8: =Data!Y29 -> 5.07 GPM
B9: =INDEX(Language!$8:$8,MATCH(Language!$H$2,Language!$1:$1,0)) -> Delta P Units | C9: =Units!S14 -> kPa | H9: =ROUND(Data!AB29/100,2) -> 1.13 | K9: =Data!Y25 -> 6.27 | O9: =Data!Y20 -> 3.96 | S9: =Data!Y15 -> 4.16 | W9: =Data!Y10 -> 3.58 | AA9: =Data!Y5 -> 1.79
H10: =Data!V27 -> 3.81 kPa | J10: =Data!AB23 -> 1.31 GPM | K10: =Units!$S$14 -> kPa | M10: =Data!AB18 -> 1.04 GPM | O10: =Units!$S$14 -> kPa | Q10: =Data!AB13 -> 1.06 GPM | S10: =Units!$S$14 -> kPa | U10: =Data!AB8 -> 0.98 GPM | W10: =Units!$S$14 -> kPa | Y10: =Data!AB3 -> 0.7 GPM | AA10: =Units!$S$14 -> kPa
A11: =Data!D14 ->  | B11: Delta P | C11: 3 | D11: =Data!C14 -> kPa | H11: =Data!Z27 -> 4 | J11: =ROUND(Data!AB24/100,2) -> 1.44 | M11: =ROUND(Data!AB19/100,2) -> 1.15 | N11: =ROUND(Data!AF24/100,2) -> 4 | Q11: =ROUND(Data!AB14/100,2) -> 1.18 | R11: =ROUND(Data!AJ24/100,2) -> 0.04 | U11: =ROUND(Data!AB9/100,2) -> 1.09 | V11: =ROUND(Data!AN24/100,2) -> 0.07 | Y11: =ROUND(Data!AB4/100,2) -> 0.77 | Z11: =ROUND(Data!AR24/100,2) -> 0.03
B12: =INDEX(Language!$9:$9,MATCH(Language!$H$2,Language!$1:$1,0)) -> Pumping Costs | K12: =INDEX(Language!$14:$14,MATCH(Language!$H$2,Language!$1:$1,0)) -> Turns | O12: =INDEX(Language!$14:$14,MATCH(Language!$H$2,Language!$1:$1,0)) -> Turns | S12: =INDEX(Language!$14:$14,MATCH(Language!$H$2,Language!$1:$1,0)) -> Turns | W12: =INDEX(Language!$14:$14,MATCH(Language!$H$2,Language!$1:$1,0)) -> Turns | AA12: =INDEX(Language!$14:$14,MATCH(Language!$H$2,Language!$1:$1,0)) -> Turns
B13: =ROUND(Data!B20,0)&"%" -> 614% | K13: =Data!Z22 -> 4 | O13: =Data!Z17 -> 4 | S13: =Data!Z12 -> 4 | W13: =Data!Z7 -> 4 | AA13: =Data!Z2 -> 4
B15: Position | C15: =Data!D15 -> 3.998046875 | D15: turns
B16: =INDEX(Language!$10:$10,MATCH(Language!$H$2,Language!$1:$1,0)) -> Pump Head
B17: =Data!B26 -> 300 kPa | H17: =Data!S29 -> 6.7 GPM
H18: =ROUND(Data!V29/100,2) -> 1.49 | K18: =Data!S25 -> 10.3 | O18: =Data!S20 -> 6.99 | S18: =Data!S15 -> 6.54 | W18: =Data!S10 -> 6.1 | AA18: =Data!S5 -> 4.07
H19: =Data!P27 -> 6.64 kPa | J19: =Data!V23 -> 1.66 GPM | K19: =Units!$S$14 -> kPa | M19: =Data!V18 -> 1.38 GPM | O19: =Units!$S$14 -> kPa | Q19: =Data!V13 -> 1.33 GPM | S19: =Units!$S$14 -> kPa | U19: =Data!V8 -> 1.29 GPM | W19: =Units!$S$14 -> kPa | Y19: =Data!V3 -> 1.05 GPM | AA19: =Units!$S$14 -> kPa
H20: =Data!T27 -> 4 | J20: =ROUND(Data!V24/100,2) -> 1.84 | M20: =ROUND(Data!V19/100,2) -> 1.53 | N20: =ROUND(Data!Z24/100,2) -> 0 | Q20: =ROUND(Data!V14/100,2) -> 1.48 | R20: =ROUND(Data!AD24/100,2) -> 0 | U20: =ROUND(Data!V9/100,2) -> 1.43 | V20: =ROUND(Data!AH24/100,2) -> 0 | Y20: =ROUND(Data!V4/100,2) -> 1.16 | Z20: =ROUND(Data!AL24/100,2) -> 0.01
K21: =INDEX(Language!$14:$14,MATCH(Language!$H$2,Language!$1:$1,0)) -> Turns | O21: =INDEX(Language!$14:$14,MATCH(Language!$H$2,Language!$1:$1,0)) -> Turns | S21: =INDEX(Language!$14:$14,MATCH(Language!$H$2,Language!$1:$1,0)) -> Turns | W21: =INDEX(Language!$14:$14,MATCH(Language!$H$2,Language!$1:$1,0)) -> Turns | AA21: =INDEX(Language!$14:$14,MATCH(Language!$H$2,Language!$1:$1,0)) -> Turns
B22: =J28 -> 1.87 GPM | D22: =K27 -> 12.9 | K22: =Data!T22 -> 4 | O22: =Data!T17 -> 4 | S22: =Data!T12 -> 4 | W22: =Data!T7 -> 4 | AA22: =Data!T2 -> 4
B23: =J29 -> 2.07 | D23: =K28 -> kPa
D24: =K30 -> Turns
D25: =K31 -> 4
H26: =Data!M29 -> 8.01 GPM
H27: =ROUND(Data!P29/100,2) -> 1.78 | K27: =Data!M25 -> 12.9 | O27: =Data!M20 -> 12.4 | S27: =Data!M15 -> 12.1 | W27: =Data!M10 -> 5.63 | AA27: =Data!M5 -> 6.04
H28: =Data!J27 -> 9.49 kPa | J28: =Data!P23 -> 1.87 GPM | K28: =Units!$S$14 -> kPa | M28: =Data!P18 -> 1.83 GPM | O28: =Units!$S$14 -> kPa | Q28: =Data!P13 -> 1.81 GPM | S28: =Units!$S$14 -> kPa | U28: =Data!P8 -> 1.24 GPM | W28: =Units!$S$14 -> kPa | Y28: =Data!P3 -> 1.28 GPM | AA28: =Units!$S$14 -> kPa
H29: =Data!N27 -> 4 | J29: =ROUND(Data!P24/100,2) -> 2.07 | M29: =ROUND(Data!P19/100,2) -> 2.03 | N29: =ROUND(Data!T24/100,2) -> 0 | Q29: =ROUND(Data!P14/100,2) -> 2 | R29: =ROUND(Data!X24/100,2) -> 0 | U29: =ROUND(Data!P9/100,2) -> 1.37 | V29: =ROUND(Data!AB24/100,2) -> 1.44 | Y29: =ROUND(Data!P4/100,2) -> 1.42 | Z29: =ROUND(Data!AF24/100,2) -> 4
K30: =INDEX(Language!$14:$14,MATCH(Language!$H$2,Language!$1:$1,0)) -> Turns | O30: =INDEX(Language!$14:$14,MATCH(Language!$H$2,Language!$1:$1,0)) -> Turns | S30: =INDEX(Language!$14:$14,MATCH(Language!$H$2,Language!$1:$1,0)) -> Turns | W30: =INDEX(Language!$14:$14,MATCH(Language!$H$2,Language!$1:$1,0)) -> Turns | AA30: =INDEX(Language!$14:$14,MATCH(Language!$H$2,Language!$1:$1,0)) -> Turns
K31: =Data!N22 -> 4 | O31: =Data!N17 -> 4 | S31: =Data!N12 -> 4 | W31: =Data!N7 -> 4 | AA31: =Data!N2 -> 4
H36: =Data!G29 -> 10.1 GPM
H37: =ROUND(Data!J29/100,2) -> 2.23 | K37: =Data!G25 -> 19.9 | O37: =Data!G20 -> 18.9 | S37: =Data!G15 -> 14.1 | W37: =Data!G10 -> 12.9 | AA37: =Data!G5 -> 10.4
H38: =Data!D27 -> 15 kPa | J38: =Data!J23 -> 2.32 GPM | K38: =Units!$S$14 -> kPa | M38: =Data!J18 -> 2.26 GPM | O38: =Units!$S$14 -> kPa | Q38: =Data!J13 -> 1.95 GPM | S38: =Units!$S$14 -> kPa | U38: =Data!J8 -> 1.87 GPM | W38: =Units!$S$14 -> kPa | Y38: =Data!J3 -> 1.67 GPM | AA38: =Units!$S$14 -> kPa
H39: =Data!H27 -> 4 | J39: =ROUND(Data!J24/100,2) -> 2.57 | M39: =ROUND(Data!J19/100,2) -> 2.51 | N39: =ROUND(Data!N24/100,2) -> 0 | Q39: =ROUND(Data!J14/100,2) -> 2.16 | R39: =ROUND(Data!R24/100,2) -> 0 | U39: =ROUND(Data!J9/100,2) -> 2.07 | V39: =ROUND(Data!V24/100,2) -> 1.84 | Y39: =ROUND(Data!J4/100,2) -> 1.85 | Z39: =ROUND(Data!Z24/100,2) -> 0
K40: =INDEX(Language!$14:$14,MATCH(Language!$H$2,Language!$1:$1,0)) -> Turns | O40: =INDEX(Language!$14:$14,MATCH(Language!$H$2,Language!$1:$1,0)) -> Turns | S40: =INDEX(Language!$14:$14,MATCH(Language!$H$2,Language!$1:$1,0)) -> Turns | W40: =INDEX(Language!$14:$14,MATCH(Language!$H$2,Language!$1:$1,0)) -> Turns | AA40: =INDEX(Language!$14:$14,MATCH(Language!$H$2,Language!$1:$1,0)) -> Turns
K41: =Data!H22 -> 4 | O41: =Data!H17 -> 4 | S41: =Data!H12 -> 4 | W41: =Data!H7 -> 4 | AA41: =Data!H2 -> 4
H47: =Data!B33 -> 29.9 GPM
H48: =ROUND(Data!B34/100,2) -> 1.66
H49: =Data!D32 -> 8.24 kPa
H50: =Data!E29 -> 4.000001

Sheet BHS - Pressure Independent (hidden)
B2: Belimo Hydronic Simulator™
B7: =INDEX(Language!$6:$6,MATCH(Language!$H$2,Language!$1:$1,0)) -> Design Settings
B8: =INDEX(Language!$7:$7,MATCH(Language!$H$2,Language!$1:$1,0)) -> Flow per coil | C8: =Data!B15 -> 0.9 | D8: =Data!B14 -> GPM | H8: =Data!Y30 -> 5.09 GPM
B9: =INDEX(Language!$8:$8,MATCH(Language!$H$2,Language!$1:$1,0)) -> Delta P Units | C9: =Units!S14 -> kPa | H9: =ROUND(Data!DU32/Units!$Z$13/5,2) -> 1.13 | K9: =Data!Y25 -> 6.27 | O9: =Data!Y20 -> 3.96 | S9: =Data!Y15 -> 4.16 | W9: =Data!Y10 -> 3.58 | AA9: =Data!Y5 -> 1.79
H10: =Data!V27 -> 3.81 kPa | J10: =Data!AB23 -> 1.31 GPM | K10: =Units!$S$14 -> kPa | M10: =IF(O9>=Units!$F$38,IF(Data!Y20>3,IF(OR(AND(Data!DU21<(C8-2%),Data!DU21>0.001),Data!DU21>(C8+2%)),C8&" "&Units!R14,Data!AB18),Data!AB18),Data!AB18) -> 1.04 GPM | O10: =Units!$S$14 -> kPa | Q10: =Data!AB13 -> 1.06 GPM | S10: =Units!$S$14 -> kPa | U10: =Data!AB8 -> 0.98 GPM | W10: =Units!$S$14 -> kPa | Y10: =Data!AB3 -> 0.7 GPM | AA10: =Units!$S$14 -> kPa
A11: =Data!D14 ->  | B11: Delta P | C11: 3 | D11: =Data!C14 -> kPa | H11: =Data!Z27 -> 4 | J11: =ROUND(Data!AB24/100,2) -> 1.44 | M11: =IF(O9>=Units!$F$38,IF(AND(Data!Y20>3,Data!Y20>0.1),ROUND(IF(OR(AND(Data!DW19<97.9,Data!DW19>1),Data!DW19>102.5),"100",Data!AB19)/100,2),ROUND(Data!AB19/100,2)),'BHS - Manual Balancing Valve'!M11:N11) -> 1.15 | N11: =ROUND(Data!AF24/100,2) -> 4 | Q11: =ROUND(Data!AB14/100,2) -> 1.18 | R11: =ROUND(Data!AJ24/100,2) -> 0.04 | U11: =ROUND(Data!AB9/100,2) -> 1.09 | V11: =ROUND(Data!AN24/100,2) -> 0.07 | Y11: =ROUND(Data!AB4/100,2) -> 0.77 | Z11: =ROUND(Data!AR24/100,2) -> 0.03
B12: =INDEX(Language!$9:$9,MATCH(Language!$H$2,Language!$1:$1,0)) -> Pumping Costs | K12: =INDEX(Language!$14:$14,MATCH(Language!$H$2,Language!$1:$1,0)) -> Turns | O12: Clip | S12: =INDEX(Language!$14:$14,MATCH(Language!$H$2,Language!$1:$1,0)) -> Turns | W12: =INDEX(Language!$14:$14,MATCH(Language!$H$2,Language!$1:$1,0)) -> Turns | AA12: =INDEX(Language!$14:$14,MATCH(Language!$H$2,Language!$1:$1,0)) -> Turns
B13: =ROUND(Data!B20,0)&"%" -> 614% | K13: =Data!Z22 -> 4 | O13: =INDEX(Units!$G$30:$G$35,MATCH(Units!$Y$13,INDEX(Units!$C$30:$F$35,,Units!$R$9),0)) -> No Clip | S13: =Data!Z12 -> 4 | W13: =Data!Z7 -> 4 | AA13: =Data!Z2 -> 4
B15: Position | C15: =Data!D15 -> 3.998046875 | D15: turns
B16: =INDEX(Language!$10:$10,MATCH(Language!$H$2,Language!$1:$1,0)) -> Pump Head
B17: =Data!B26 -> 300 kPa | H17: =Data!S30 -> 6.71 GPM
H18: =ROUND(Data!CU32/Units!$Z$13/5,2) -> 1.49 | K18: =Data!S25 -> 10.3 | O18: =Data!S20 -> 6.99 | S18: =Data!S15 -> 6.54 | W18: =Data!S10 -> 6.1 | AA18: =Data!S5 -> 4.07
H19: =Data!P27 -> 6.64 kPa | J19: =Data!V23 -> 1.66 GPM | K19: =Units!$S$14 -> kPa | M19: =Data!V18 -> 1.38 GPM | O19: =Units!$S$14 -> kPa | Q19: =Data!V13 -> 1.33 GPM | S19: =Units!$S$14 -> kPa | U19: =IF(W18>=Units!$F$38,IF(Data!S10>3,IF(OR(AND(Data!CU11<(C8-2%),Data!CU11>0.001),Data!CU11>(C8+2%)),C8&" "&Units!R14,Data!V8),Data!V8),'BHS - Manual Balancing Valve'!U19:V19) -> 1.29 GPM | W19: =Units!$S$14 -> kPa | Y19: =Data!V3 -> 1.05 GPM | AA19: =Units!$S$14 -> kPa
H20: =Data!T27 -> 4 | J20: =ROUND(Data!V24/100,2) -> 1.84 | M20: =ROUND(Data!V19/100,2) -> 1.53 | N20: =ROUND(Data!Z24/100,2) -> 0 | Q20: =ROUND(Data!V14/100,2) -> 1.48 | R20: =ROUND(Data!AD24/100,2) -> 0 | U20: =IF(W18>=Units!$F$38,IF(AND(Data!S10>3,Data!S10>0.1),ROUND(IF(OR(AND(Data!CW9<97.9,Data!CW9>1),Data!CW9>102.5),"100",Data!V9)/100,2),ROUND(Data!V9/100,2)),'BHS - Manual Balancing Valve'!U20:V20) -> 1.43 | V20: =ROUND(Data!AH24/100,2) -> 0 | Y20: =ROUND(Data!V4/100,2) -> 1.16 | Z20: =ROUND(Data!AL24/100,2) -> 0.01
K21: =INDEX(Language!$14:$14,MATCH(Language!$H$2,Language!$1:$1,0)) -> Turns | O21: =INDEX(Language!$14:$14,MATCH(Language!$H$2,Language!$1:$1,0)) -> Turns | S21: =INDEX(Language!$14:$14,MATCH(Language!$H$2,Language!$1:$1,0)) -> Turns | W21: Clip | AA21: =INDEX(Language!$14:$14,MATCH(Language!$H$2,Language!$1:$1,0)) -> Turns
B22: =J28 -> 1.87 GPM | D22: =K27 -> 12.9 | K22: =Data!T22 -> 4 | O22: =Data!T17 -> 4 | S22: =Data!T12 -> 4 | W22: =INDEX(Units!$G$30:$G$35,MATCH(Units!$Y$13,INDEX(Units!$C$30:$F$35,,Units!$R$9),0)) -> No Clip | AA22: =Data!T2 -> 4
B23: =J29 -> 2.07 | D23: =K28 -> kPa
D24: =K40 -> Turns
D25: =K41 -> 4
H26: =Data!M30 -> 8.03 GPM
H27: =ROUND(Data!BU32/Units!$Z$13/5,2) -> 1.78 | K27: =Data!M25 -> 12.9 | O27: =Data!M20 -> 12.4 | S27: =Data!M15 -> 12.1 | W27: =Data!M10 -> 5.63 | AA27: =Data!M5 -> 6.04
H28: =Data!J27 -> 9.49 kPa | J28: =IF(K27>=Units!$F$38,IF(Data!M25>3,IF(OR(AND(Data!BU26<(C8-2%),Data!BU26>0.001),Data!BU26>(C8+2%)),C8&" "&Units!R14,Data!P23),Data!P23),'BHS - Manual Balancing Valve'!J28) -> 1.87 GPM | K28: =Units!$S$14 -> kPa | M28: =Data!P18 -> 1.83 GPM | O28: =Units!$S$14 -> kPa | Q28: =Data!P13 -> 1.81 GPM | S28: =Units!$S$14 -> kPa | U28: =Data!P8 -> 1.24 GPM | W28: =Units!$S$14 -> kPa | Y28: =IF(AA27>=Units!$F$38,IF(Data!M5>3,IF(OR(AND(Data!BU6<(C8-2%),Data!BU6>0.001),Data!BU6>(C8+2%)),C8&" "&Units!R14,Data!P3),Data!P3),'BHS - Manual Balancing Valve'!Y28:Z28) -> 1.28 GPM | AA28: =Units!$S$14 -> kPa
H29: =Data!N27 -> 4 | J29: =IF(K27>=Units!$F$38,IF(AND(Data!M25>3,Data!M25>0.1),ROUND(IF(OR(AND(Data!BW24<97.9,Data!BW24>1),Data!BW24>102.5),"100",Data!P24)/100,2),ROUND(Data!P24/100,2)),'BHS - Manual Balancing Valve'!J29) -> 2.07 | M29: =ROUND(Data!P19/100,2) -> 2.03 | N29: =ROUND(Data!T24/100,2) -> 0 | Q29: =ROUND(Data!P14/100,2) -> 2 | R29: =ROUND(Data!X24/100,2) -> 0 | U29: =ROUND(Data!P9/100,2) -> 1.37 | V29: =ROUND(Data!AB24/100,2) -> 1.44 | Y29: =IF(AA27>=Units!$F$38,IF(AND(Data!M5>3,Data!M5>0.1),ROUND(IF(OR(AND(Data!BW4<97.9,Data!BW4>1),Data!BW4>102.5),"100",Data!P4)/100,2),ROUND(Data!P4/100,2)),'BHS - Manual Balancing Valve'!Y29:Z29) -> 1.42 | Z29: =ROUND(Data!AF24/100,2) -> 4
K30: Clip | O30: =INDEX(Language!$14:$14,MATCH(Language!$H$2,Language!$1:$1,0)) -> Turns | S30: =INDEX(Language!$14:$14,MATCH(Language!$H$2,Language!$1:$1,0)) -> Turns | W30: =INDEX(Language!$14:$14,MATCH(Language!$H$2,Language!$1:$1,0)) -> Turns | AA30: Clip
K31: =INDEX(Units!$G$30:$G$35,MATCH(Units!$Y$13,INDEX(Units!$C$30:$F$35,,Units!$R$9),0)) -> No Clip | O31: =Data!N17 -> 4 | S31: =Data!N12 -> 4 | W31: =Data!N7 -> 4 | AA31: =INDEX(Units!$G$30:$G$35,MATCH(Units!$Y$13,INDEX(Units!$C$30:$F$35,,Units!$R$9),0)) -> No Clip
H36: =Data!G30 -> 10.07 GPM
H37: =ROUND(Data!AU49/Units!$Z$13/5,2) -> 2.24 | K37: =Data!G25 -> 19.9 | O37: =Data!G20 -> 18.9 | S37: =Data!G15 -> 14.1 | W37: =Data!G10 -> 12.9 | AA37: =Data!G5 -> 10.4
H38: =Data!D27 -> 15 kPa | J38: =Data!J23 -> 2.32 GPM | K38: =Units!$S$14 -> kPa | M38: =Data!J18 -> 2.26 GPM | O38: =Units!$S$14 -> kPa | Q38: =IF(S37>=Units!$F$38,IF(Data!G15>3,IF(OR(AND(Data!AU16<(C8-2%),Data!AU16>0.001),Data!AU16>(C8+2%)),C8&" "&Units!R14,Data!J13),Data!J13),'BHS - Manual Balancing Valve'!Q38:R38) -> 1.95 GPM | S38: =Units!$S$14 -> kPa | U38: =Data!J8 -> 1.87 GPM | W38: =Units!$S$14 -> kPa | Y38: =Data!J3 -> 1.67 GPM | AA38: =Units!$S$14 -> kPa
H39: =Data!H27 -> 4 | J39: =ROUND(Data!J24/100,2) -> 2.57 | M39: =ROUND(Data!J19/100,2) -> 2.51 | N39: =ROUND(Data!N24/100,2) -> 0 | Q39: =IF(S37>=Units!$F$38,IF(AND(Data!G15>3,Data!G15>0.1),ROUND(IF(OR(AND(Data!AW14<97.9,Data!AW14>1),Data!AW14>102.5),"100",Data!J14)/100,2),ROUND(Data!J14/100,2)),'BHS - Manual Balancing Valve'!Q39:R39) -> 2.16 | R39: =ROUND(Data!R24/100,2) -> 0 | U39: =ROUND(Data!J9/100,2) -> 2.07 | V39: =ROUND(Data!V24/100,2) -> 1.84 | Y39: =ROUND(Data!J4/100,2) -> 1.85 | Z39: =ROUND(Data!Z24/100,2) -> 0
K40: =INDEX(Language!$14:$14,MATCH(Language!$H$2,Language!$1:$1,0)) -> Turns | O40: =INDEX(Language!$14:$14,MATCH(Language!$H$2,Language!$1:$1,0)) -> Turns | S40: Clip | W40: =INDEX(Language!$14:$14,MATCH(Language!$H$2,Language!$1:$1,0)) -> Turns | AA40: =INDEX(Language!$14:$14,MATCH(Language!$H$2,Language!$1:$1,0)) -> Turns
K41: =Data!H22 -> 4 | O41: =Data!H17 -> 4 | S41: =INDEX(Units!$G$30:$G$35,MATCH(Units!$Y$13,INDEX(Units!$C$30:$F$35,,Units!$R$9),0)) -> No Clip | W41: =Data!H7 -> 4 | AA41: =Data!H2 -> 4
H47: =Data!B35 -> 29.9 GPM
H48: =ROUND(Data!AK42/Units!$Z$13/20,2) -> 1.66
H49: =Data!D32 -> 8.24 kPa
H50: =Data!E29 -> 4.000001

Sheet Copyright
B2: BELIMO HYDRONIC SIMULATOR ™
B4: © BELIMO HOLDING AG 2018 | C4: © BELIMO HOLDING AG 2018
B6: Rechte am Geistigen Eigentum | C6: Intellectual Property Rights
B8: Sämtliche Rechte, Titel und Ansprüche (einschliesslich Copyrights, Marken, Patente und anderer Rechte an geistigem Eigentum) an allen Informationen und Inhalten (einschliesslich aller Texte, Daten, Grafiken und Logos) des BELIMO Hydronic Simulator™ verbleiben bei der BELIMO oder dem jeweiligen Rechteinhaber. Einzelne Seiten, Teile oder Ergebnisse des BELIMO Hydronic Simulator™ dürfen ausschliesslich zu privater oder interner Verwendung ausgedruckt werden, und nur insoweit als der jeweilige Ausdruck alle betreffenden Hinweise auf Copyrights und andere Eigentumsrechte enthält. Es ist den Benutzern verboten, irgendwelche Informationen, Texte, Grafiken, Bilder, Datenbanken, Listen oder Software, die vom BELIMO Hydronic Simulator™ stammen, im Ganzen oder teilweise ohne die vorherige schriftliche Genehmigung von BELIMO zu verändern, zu kopieren, zu senden, weiterzugeben, auszustellen, vorzuführen, zu reproduzieren, zu veröffentlichen, zu lizenzieren, als Frame in einer Webseite zu verwenden, zu übertragen und von den genannten Inhalten abgeleitete Werke zu erstellen oder sie auf andere Art für gewerbliche oder öffentliche Zwecke zu nutzen. | C8: BELIMO, or the applicable third-party owner, retains all right, title and interest (including copyrights, trademarks, patents, as well as any other intellectual property right) in all information and content (including all text, data, graphics and logos) on the BELIMO Hydronic Simulator™. Individual pages, sections or results of the BELIMO Hydronic Simulator™ may be printed for personal or internal use only, and provided that such printouts retain all applicable copyright or other proprietary notices. All users must not, without limitation, modify, copy, transmit, distribute, display, perform, reproduce, publish, license, frame, create derivative works from, transfer or otherwise use in any other way, whether in whole or in part, any information, text, graphics, images, databases, listings or software obtained from the BELIMO Hydronic Simulator™for commercial or public purposes, without the prior written permission of BELIMO.

Sheet Language (hidden)
A1: Shape Name | B1: English | C1: French | D1: Spanish | E1: Portuguese | H1: Selected Language
A2: LabelSelectLanguage | B2: Select Language | C2: Sélectionnez la Langue | D2: Seleccione el Idioma | E2: Selecione o Idioma | H2: English
A3: LabelSelectFlowUnits | B3: Select the Flow units | C3: Sélectionnez les unités de mesure du débit | D3: Seleccione las unidades de flujo | E3: Selecione as unidades de vazão
A4: LabelSelectFlowPerCoil | B4: Select the Flow per coil | C4: Sélectionnez le débit par serpentin | D4: Seleccione el flujo por serpentín | E4: Selecione a vazão por unidade terminal
A5: LabelSelectDeltaPUnits | B5: Select the Delta P units | C5: Sélectionnez les unités de mesure du delta P | D5: Seleccione las unidades de Delta P | E5: Selecione as unidades de Delta P
B6: Design Settings | C6: Paramètre de conception | D6: Dados de diseño | E6: Dados de projeto
B7: Flow per coil | C7: Débit | D7: Flujo | E7: Vazão p/ coil
B8: Delta P Units | C8: Unités Dp | D8: Unidades Dp | E8: Unidade Dp
B9: Pumping Costs | C9: Frais de pompage | D9: Costo del bombeo | E9: Custo de Bombeamento
B10: Pump Head | C10: Pression de pompe | D10: Cabeza de la bomba | E10: Altura Manométrica
B11: Nominal | C11: Nominale | D11: Nominal | E11: Nominal
A12: Open | B12: Open | C12: Ouvert | D12: Abrir | E12: Abrir
A13: Closed | B13: Closed | C13: Fermé | D13: Cerrar | E13: Fechar
B14: Turns | C14: Tours | D14: Vueltas | E14: Voltas
A15: FullyOpen | B15: Open Valves Fully | C15: Ouvre entièrement les robinets | D15: Abrir las válvulas completamente | E15: Abrir totalmente as válvulas
A16: ButtonBalanceSystem | B16: Balance System | C16: Équilibre le système | D16: Balanceo del sistema | E16: Balancear o sistema
B17: Pressure drop across the manual balancing valve | C17: Chute de pression dans le robinet d’équilibrage manuel | D17: Caída de presión en la válvula de balanceo manual | E17: Perda de carga na válvula de balanceamento manual
B18: Turns in the manual balancing valve | C18: Tours de la tige du robinet d'équilibrage manuel | D18: Vueltas en la válvula de balanceo manual | E18: Número de voltas na válvula de balanceamento manual
B19: Blue pipe – Supply / Red pipe - Return | C19: Canalisation bleue – Alimentation / Canalisation rouge – Retour | D19: Tubería azul – Suministro / Tubería roja - Retorno | E19: Tubulação azul – Alimentação / Tubulação vermelha - Retorno
B20: Open or Close manual balancing valve | C20: Ouvre ou ferme le robinet d'équilibrage manuel | D20: Abrir o cerrar la válvula de balanceo manual | E20: Abrir ou fechar a válvula de balanceamento manual
B21: Flow percentage in the coil | C21: Débit dans le serpentin en pourcentage | D21: Porcentaje de flujo en el serpentín | E21: Porcentagem de vazão na unidade terminal
B22: Current flow in the coil | C22: Débit réel dans le serpentin | D22: Flujo actual en el serpentín | E22: Vazão atual na unidade terminal

Sheet Information Boxes (hidden)
A1: Button | B1: Information
A2: GPMInfo | B2: =INDEX(Language!$22:$22,MATCH(Language!$H$2,Language!$1:$1,0)) -> Current flow in the coil
A3: PercentInfo | B3: =INDEX(Language!$21:$21,MATCH(Language!$H$2,Language!$1:$1,0)) -> Flow percentage in the coil
A4: PSIInfo | B4: =INDEX(Language!$17:$17,MATCH(Language!$H$2,Language!$1:$1,0)) -> Pressure drop across the manual balancing valve
A5: OpenCloseInfo | B5: =INDEX(Language!$20:$20,MATCH(Language!$H$2,Language!$1:$1,0)) -> Open or Close manual balancing valve
A6: TurnInfo | B6: =INDEX(Language!$18:$18,MATCH(Language!$H$2,Language!$1:$1,0)) -> Turns in the manual balancing valve
A7: PipesInfo | B7: =INDEX(Language!$19:$19,MATCH(Language!$H$2,Language!$1:$1,0)) -> Blue pipe – Supply / Red pipe - Return

Sheet Units (hidden)
F6: Some parameters | I6: Suggested | J6: Chosen | K6: Units
W7: kPa-l/h
C8: Click on the units required | F8: Dp pipes between the risers | I8: =Z11 -> 12 | J8: =I8 -> 12 | K8: =$S$14 -> kPa | T8: Flow | U8: Dp | V8: Suggested | W8: Chosen
C9: Flow units | D9: Dp units | F9: Dp pipes between coils of one riser | I9: =Z12 -> 2 | J9: =I9 -> 2 | K9: =$S$14 -> kPa | R9: 2 | S9: 1 | T9: Correction factors
F10: Design water flow in each coil | I10: =Z13 -> 0.9 | J10: =I10 -> 0.9 | K10: =R14 -> GPM | Q10: 1 | R10: l/h | S10: kPa | T10: 1 | U10: 1 | V10: 3 | W10: =V10*$U$14 -> 3 | Y10: =V10/$U$14 -> 3 | Z10: =ROUND(Y10,IF(Y10>=100,0,1)) -> 3
Q11: 2 | R11: GPM | S11: psi | T11: 227 | U11: 6.9 | V11: 12 | W11: =J8*$U$14 -> 12 | Y11: =V11/$U$14 -> 12 | Z11: =ROUND(Y11,IF(Y11>=100,0,1)) -> 12
Q12: 3 | R12: l/s | T12: 3600 | V12: 2 | W12: =J9*$U$14 -> 2 | Y12: =V12/$U$14 -> 2 | Z12: =ROUND(Y12,IF(Y12>=100,0,1)) -> 2
Q13: 4 | R13: m3/h | T13: 1000 | V13: 150 | W13: =J10*T14 -> 204.3 | Y13: 0.9 | Z13: =ROUND(Y13,IF(Y13>=100,0,2-ROUND(LOG10(Y13),0))) -> 0.9
R14: =LOOKUP(R9,$Q$10:$Q$13,R10:R13) -> GPM | S14: =LOOKUP(S9,$Q$10:$Q$13,S10:S13) -> kPa | T14: =LOOKUP(R9,$Q$10:$Q$13,T10:T13) -> 227 | U14: =LOOKUP(S9,$Q$10:$Q$13,U10:U13) -> 1
B15: Important remark: | D15: For all modification of the working units | H15: =$J$9 -> 2 | I15: =$J$9 -> 2 | J15: =$J$9 -> 2 | K15: =$J$9 -> 2
B16: please check the values visible in the yellow cells
H17: =$J$9 -> 2 | I17: =$J$9 -> 2 | J17: =$J$9 -> 2 | K17: =$J$9 -> 2
C18: ="Design Dp in each coil in "&K7 -> Design Dp in each coil in
C19: Column 1 | D19: Column 2 | E19: Column 3 | F19: Column 4 | H19: =$J$9 -> 2 | I19: =$J$9 -> 2 | J19: =$J$9 -> 2 | K19: =$J$9 -> 2
B20: 5 | C20: 5 | D20: 9 | E20: 7 | F20: 13
B21: 4 | C21: 5 | D21: 12 | E21: 5 | F21: 6 | H21: =$J$9 -> 2 | I21: =$J$9 -> 2 | J21: =$J$9 -> 2 | K21: =$J$9 -> 2
B22: 3 | C22: 6 | D22: 5 | E22: 6 | F22: 6
B23: 2 | C23: 5 | D23: 6 | E23: 7 | F23: 8 | H23: =$J$9 -> 2 | I23: =$J$9 -> 2 | J23: =$J$9 -> 2 | K23: =$J$9 -> 2
B24: 1 | C24: 6 | D24: 7 | E24: 5 | F24: 5
H25: =$J$8 -> 12 | I25: =$J$8 -> 12 | J25: =$J$8 -> 12 | K25: =$J$8 -> 12
I26: Dp pipes between the risers
C28: Flow
C29: l/h | D29: GPM | E29: l/s | F29: m3/h | G29: Clip Position
C30: 91 | D30: 0.4 | E30: =ROUND(D30*227/3600,3) -> 0.025 | F30: =ROUND(D30*227/1000,3) -> 0.091 | G30: 5
C31: 114 | D31: 0.5 | E31: =ROUND(D31*227/3600,3) -> 0.032 | F31: =ROUND(D31*227/1000,3) -> 0.114 | G31: 6-
C32: 136 | D32: 0.6 | E32: 0.038 | F32: 0.136 | G32: 6+
C33: 159 | D33: 0.7 | E33: 0.044 | F33: 0.159 | G33: N-
C34: 182 | D34: 0.8 | E34: 0.05 | F34: 0.182 | G34: N
C35: 204 | D35: 0.9 | E35: 0.057 | F35: 0.204 | G35: No Clip
F37: Value | G37: Ref. Value
C38: Min Delta P on the Pressure Independent | F38: =G38/U14 -> 16 | G38: 16

Sheet Data (hidden)
AI1: kPa
H2: =AJ4 -> 4 | N2: =$BJ4 -> 4 | T2: =CJ4 -> 4 | Z2: =$DJ4 -> 4 | AF2: 100 | AG2: =Units!$W$13 -> 204.3 | AH2: Min | AI2: =Units!$W$10 -> 3 | AJ2: Kvs= | AK2: =0.01*$AG$2/$AI$2^0.5 -> 1.1795266 | AL2: L= | AM2: =Units!$W$12 -> 2 | AN2: Units | AO2: l/h | AP2: kPa | AQ2: Corr | AR2: =Units!$T$14 -> 227 | AS2: =Units!$U$14 -> 1 | AV2: STAD | AW2: q% | AZ2: =Units!$R$14:$U$14 -> GPM | BA2: kPa | BB2: 227 | BC2: 1 | BF2: 200 | BG2: =Units!$W$13 -> 204.3 | BH2: Min | BI2: =Units!$W$10 -> 3 | BJ2: Kvs= | BK2: =0.01*$AG$2/$AI$2^0.5 -> 1.1795266 | BL2: L= | BM2: =Units!$W$12 -> 2 | BN2: Units | BO2: l/h | BP2: kPa | BQ2: Corr | BR2: =Units!$T$14 -> 227 | BS2: =Units!$U$14 -> 1 | BV2: STAD | BW2: q% | CF2: qc | CG2: =Units!$W$13 -> 204.3 | CH2: Min | CI2: =Units!$W$10 -> 3 | CJ2: Kvs= | CK2: =0.01*$AG$2/$AI$2^0.5 -> 1.1795266 | CL2: L= | CM2: =Units!$W$12 -> 2 | CN2: Units | CO2: l/h | CP2: kPa | CQ2: Corr | CR2: =Units!$T$14 -> 227 | CS2: =Units!$U$14 -> 1 | CV2: STAD | CW2: q% | DF2: qc | DG2: =Units!$W$13 -> 204.3 | DH2: Min | DI2: =Units!$W$10 -> 3 | DJ2: Kvs= | DK2: =0.01*$AG$2/$AI$2^0.5 -> 1.1795266 | DL2: L= | DM2: =Units!$W$12 -> 2 | DN2: Units | DO2: l/h | DP2: kPa | DQ2: Corr | DR2: =Units!$T$14 -> 227 | DS2: =Units!$U$14 -> 1 | DV2: STAD | DW2: q% | DY2: Kv | DZ2: Max | EA2: Min | EB2: Pos | EC2: Kv2 | ED2: Max | EE2: Min | EF2: Pos | EG2: Kv2 | EH2: Max | EI2: Min | EJ2: Pos | EK2: Kv2 | EL2: Max | EM2: Min | EN2: Pos | EO2: Kv2 | EP2: Max | EQ2: Min | ER2: Pos | ES2: Kv2 | ET2: Max | EU2: Min | EV2: Pos | EW2: Kv2 | EX2: Max | EY2: Min | EZ2: Pos | FA2: Kv2 | FB2: Max | FC2: Min | FD2: Pos | FE2: Kv2 | FF2: Max | FG2: Min | FH2: Pos | FI2: Kv2 | FJ2: Max | FK2: Min | FL2: Pos | FM2: Kv2 | FN2: Max | FO2: Min | FP2: Pos
J3: =IF(AU6&" "&$AZ$2="0.0001 GPM","0 GPM",AU6&" "&$AZ$2) -> 1.67 GPM | P3: =IF(BU6&" "&$AZ$2="0.0001 GPM","0 GPM",BU6&" "&$AZ$2) -> 1.28 GPM | V3: =IF(CU6&" "&$AZ$2="0.0001 GPM","0 GPM",CU6&" "&$AZ$2) -> 1.05 GPM | AB3: =IF(DU6&" "&$AZ$2="0.0001 GPM","0 GPM",DU6&" "&$AZ$2) -> 0.7 GPM | AE3: FALSE | AF3: Pos5 | AI3: Units | AJ3: Pos | AK3: ="C"&(6-AM4) -> C5 | AL3: ="KvC"&(6-AM4) -> KvC5 | AM3: Nb | AN3: ="KvL"&(6-AM4) -> KvL5 | AO3: ="Kvs"&(6-AM4) -> Kvs5 | AR3: ="KV"&(6-AM4) -> KV5 | AS3: PE | AU3: ="q5" -> q5 | BE3: FALSE | BF3: Pos5 | BJ3: Pos | BK3: ="C"&(6-BM4) -> C5 | BL3: ="KvC"&(6-BM4) -> KvC5 | BM3: Nb | BN3: ="KvL"&(6-BM4) -> KvL5 | BO3: ="Kvs"&(6-BM4) -> Kvs5 | BR3: ="KV"&(6-BM4) -> KV5 | BS3: PE | BU3: ="q5" -> q5 | CE3: FALSE | CF3: Pos5 | CJ3: Pos | CK3: ="C"&(6-CM4) -> C5 | CL3: ="KvC"&(6-CM4) -> KvC5 | CM3: Nb | CN3: ="KvL"&(6-CM4) -> KvL5 | CO3: ="Kvs"&(6-CM4) -> Kvs5 | CR3: ="KV"&(6-CM4) -> KV5 | CS3: PE | CU3: ="q5" -> q5 | DE3: FALSE | DF3: Pos5 | DJ3: Pos | DK3: ="C"&(6-DM4) -> C5 | DL3: ="KvC"&(6-DM4) -> KvC5 | DM3: Nb | DN3: ="KvL"&(6-DM4) -> KvL5 | DO3: ="Kvs"&(6-DM4) -> Kvs5 | DR3: ="KV"&(6-DM4) -> KV5 | DS3: PE | DU3: ="q5" -> q5 | DY3: =0.01*B15*BB2/(C15*BC2)^0.5 -> 1.1795266 | DZ3: 4 | EA3: 0 | EB3: =(DZ3+EA3)/2 -> 2 | EC3: =$BA$7*0.4/(4/EB3-0.6)+10^-10 -> 0.3370076001 | ED3: =IF(EC3>$DY$3,EB3,DZ3) -> 4 | EE3: =IF(EC3>$DY$3,EA3,EB3) -> 2 | EF3: =(ED3+EE3)/2 -> 3 | EG3: =$BA$7*0.4/(4/EF3-0.6)+10^-10 -> 0.6433781455 | EH3: =IF(EG3>$DY$3,EF3,ED3) -> 4 | EI3: =IF(EG3>$DY$3,EE3,EF3) -> 3 | EJ3: =(EH3+EI3)/2 -> 3.5 | EK3: =$BA$7*0.4/(4/EJ3-0.6)+10^-10 -> 0.8691248632 | EL3: =IF(EK3>$DY$3,EJ3,EH3) -> 4 | EM3: =IF(EK3>$DY$3,EI3,EJ3) -> 3.5 | EN3: =(EL3+EM3)/2 -> 3.75 | EO3: =$BA$7*0.4/(4/EN3-0.6)+10^-10 -> 1.0110228 | EP3: =IF(EO3>$DY$3,EN3,EL3) -> 4 | EQ3: =IF(EO3>$DY$3,EM3,EN3) -> 3.75 | ER3: =(EP3+EQ3)/2 -> 3.875 | ES3: =$BA$7*0.4/(4/ER3-0.6)+10^-10 -> 1.091502227 | ET3: =IF(ES3>$DY$3,ER3,EP3) -> 4 | EU3: =IF(ES3>$DY$3,EQ3,ER3) -> 3.875 | EV3: =(ET3+EU3)/2 -> 3.9375 | EW3: =$BA$7*0.4/(4/EV3-0.6)+10^-10 -> 1.134506501 | EX3: =IF(EW3>$DY$3,EV3,ET3) -> 4 | EY3: =IF(EW3>$DY$3,EU3,EV3) -> 3.9375 | EZ3: =(EX3+EY3)/2 -> 3.96875 | FA3: =$BA$7*0.4/(4/EZ3-0.6)+10^-10 -> 1.156755816 | FB3: =IF(FA3>$DY$3,EZ3,EX3) -> 4 | FC3: =IF(FA3>$DY$3,EY3,EZ3) -> 3.96875 | FD3: =(FB3+FC3)/2 -> 3.984375 | FE3: =$BA$7*0.4/(4/FD3-0.6)+10^-10 -> 1.168074885 | FF3: =IF(FE3>$DY$3,FD3,FB3) -> 4 | FG3: =IF(FE3>$DY$3,FC3,FD3) -> 3.984375 | FH3: =(FF3+FG3)/2 -> 3.9921875 | FI3: =$BA$7*0.4/(4/FH3-0.6)+10^-10 -> 1.173784017 | FJ3: =IF(FI3>$DY$3,FH3,FF3) -> 4 | FK3: =IF(FI3>$DY$3,FG3,FH3) -> 3.9921875 | FL3: =(FJ3+FK3)/2 -> 3.99609375 | FM3: =$BA$7*0.4/(4/FL3-0.6)+10^-10 -> 1.176651109 | FN3: =IF(FM3>$DY$3,FL3,FJ3) -> 4 | FO3: =IF(FM3>$DY$3,FK3,FL3) -> 3.99609375 | FP3: =(FN3+FO3)/2 -> 3.998046875
J4: =IF($AW4=0,"0",$AW4) -> 185.359665 | K4: % | P4: =IF($BW4=0,"0",$BW4) -> 141.7924008 | Q4: % | V4: =IF($CW4=0,"0",$CW4) -> 116.4187246 | W4: % | AB4: =IF($DW4=0,"0",$DW4) -> 77.15851325 | AC4: % | AE4: 400 | AF4: =IF(AE3=TRUE,0,AE4) -> 400 | AI4: =AI2/9.81 -> 0.3058103976 | AJ4: =AF4/100+0.0000000000001 -> 4 | AK4: =Units!$C$20*$BC$2 -> 5 | AL4: =0.01*$AG$2/AK4^0.5 -> 0.9136573756 | AM4: 1 | AN4: =0.01*$AG$2/$AM$2^0.5*AM4 -> 1.444619154 | AO4: =$AK$2*(0.4/(4/AJ4-0.6))+10^-10 -> 1.1795266 | AR4: =1/(1/AL4^2+1/AN4^2+1/AO4^2)^0.5 -> 0.646053326 | AS4: =IF(AS9-(0.01*AT9/AN4)^2<0.0002,0,AS9-(0.01*AT9/AN4)^2) -> 27.48656433 | AU4: =100*AR4*AS9^0.5 -> 378.6897956 | AV4: =(0.01*AU4/AO4)^2 -> 10.30746162 | AW4: =100*AU4/$AG$2 -> 185.359665 | BE4: 400 | BF4: =IF(BE3=TRUE,0,BE4) -> 400 | BJ4: =BF4/100+0.0000000000001 -> 4 | BK4: =Units!$D$20*BC2 -> 9 | BL4: =0.01*$AG$2/BK4^0.5 -> 0.681 | BM4: 1 | BN4: =0.01*$AG$2/$AM$2^0.5*BM4 -> 1.444619154 | BO4: =$AK$2*(0.4/(4/BJ4-0.6))+10^-10 -> 1.1795266 | BR4: =1/(1/BL4^2+1/BN4^2+1/BO4^2)^0.5 -> 0.5460147172 | BS4: =IF(BS9-(0.01*BT9/BN4)^2<0.0002,0,BS9-(0.01*BT9/BN4)^2) -> 24.12610192 | BU4: =100*BR4*BS9^0.5 -> 289.6818749 | BV4: =(0.01*BU4/BO4)^2 -> 6.03152548 | BW4: =100*BU4/$AG$2 -> 141.7924008 | CE4: 400 | CF4: =IF(CE3=TRUE,0,CE4) -> 400 | CJ4: =CF4/100+0.0000000000001 -> 4 | CK4: =Units!$E$20*BC2 -> 7 | CL4: =0.01*$AG$2/CK4^0.5 -> 0.7721814184 | CM4: 1 | CN4: =0.01*$AG$2/$AM$2^0.5*CM4 -> 1.444619154 | CO4: =$AK$2*(0.4/(4/CJ4-0.6))+10^-10 -> 1.1795266 | CR4: =1/(1/CL4^2+1/CN4^2+1/CO4^2)^0.5 -> 0.5897633 | CS4: =IF(CS9-(0.01*CT9/CN4)^2<0.0002,0,CS9-(0.01*CT9/CN4)^2) -> 13.55331944 | CU4: =100*CR4*CS9^0.5 -> 237.8434544 | CV4: =(0.01*CU4/CO4)^2 -> 4.06599583 | CW4: =100*CU4/$AG$2 -> 116.4187246 | DE4: 400 | DF4: =IF(DE3=TRUE,0,DE4) -> 400 | DJ4: =DF4/100+0.0000000000001 -> 4 | DK4: =Units!$F$20*BC2 -> 13 | DL4: =0.01*$AG$2/DK4^0.5 -> 0.5666262504 | DM4: 1 | DN4: =0.01*$AG$2/$AM$2^0.5*DM4 -> 1.444619154 | DO4: =$AK$2*(0.4/(4/DJ4-0.6))+10^-10 -> 1.1795266 | DR4: =1/(1/DL4^2+1/DN4^2+1/DO4^2)^0.5 -> 0.481539718 | DS4: =IF(DS9-(0.01*DT9/DN4)^2<0.0002,0,DS9-(0.01*DT9/DN4)^2) -> 9.525497866 | DU4: =100*DR4*DS9^0.5 -> 157.6348426 | DV4: =(0.01*DU4/DO4)^2 -> 1.78603085 | DW4: =100*DU4/$AG$2 -> 77.15851325
G5: =IF(H2=0.0000000000001,0,AV6) -> 10.4 | M5: =IF(N2=0.0000000000001,0,BV6) -> 6.04 | S5: =IF(T2=0.0000000000001,0,CV6) -> 4.07 | Y5: =IF(Z2=0.0000000000001,0,DV6) -> 1.79 | AU5: =$AU4/$AR$2 -> 1.668236985 | AV5: =$AV4/$BC$2 -> 10.30746162 | BA5: Kvs | BU5: =BU4/$AR$2 -> 1.276131608 | BV5: =BV4/$BC$2 -> 6.03152548 | CU5: =CU4/$AR$2 -> 1.047768521 | CV5: =CV4/$BC$2 -> 4.06599583 | DU5: =DU4/$AR$2 -> 0.6944266192 | DV5: =DV4/$BC$2 -> 1.78603085 | DY5: Kvs
AU6: =ROUND(CEILING(AU5,IF(AU5>=100,1,IF(AND(AU5<100,AU5>=10),0.1,IF(AND(AU5<10,AU5>=1),0.01,IF(AND(AU5<1,AU5>=0.1),0.001,0.0001))))),2) -> 1.67 | AV6: =CEILING(AV5,IF(AV5>=100,1,IF(AND(AV5<100,AV5>=10),0.1,IF(AND(AV5<10,AV5>=1),0.01,IF(AND(AV5<1,AV5>=0.1),0.001,0.0001))))) -> 10.4 | BU6: =ROUND(CEILING(BU5,IF(BU5>=100,1,IF(AND(BU5<100,BU5>=10),0.1,IF(AND(BU5<10,BU5>=1),0.01,IF(AND(BU5<1,BU5>=0.1),0.001,0.0001))))),2) -> 1.28 | BV6: =CEILING(BV5,IF(BV5>=100,1,IF(AND(BV5<100,BV5>=10),0.1,IF(AND(BV5<10,BV5>=1),0.01,IF(AND(BV5<1,BV5>=0.1),0.001,0.0001))))) -> 6.04 | CU6: =ROUND(CEILING(CU5,IF(CU5>=100,1,IF(AND(CU5<100,CU5>=10),0.1,IF(AND(CU5<10,CU5>=1),0.01,IF(AND(CU5<1,CU5>=0.1),0.001,0.0001))))),2) -> 1.05 | CV6: =CEILING(CV5,IF(CV5>=100,1,IF(AND(CV5<100,CV5>=10),0.1,IF(AND(CV5<10,CV5>=1),0.01,IF(AND(CV5<1,CV5>=0.1),0.001,0.0001))))) -> 4.07 | DU6: =ROUND(CEILING(DU5,IF(DU5>=100,1,IF(AND(DU5<100,DU5>=10),0.1,IF(AND(DU5<10,DU5>=1),0.01,IF(AND(DU5<1,DU5>=0.1),0.001,0.0001))))),2) -> 0.7 | DV6: =CEILING(DV5,IF(DV5>=100,1,IF(AND(DV5<100,DV5>=10),0.1,IF(AND(DV5<10,DV5>=1),0.01,IF(AND(DV5<1,DV5>=0.1),0.001,0.0001))))) -> 1.79
H7: =AJ9 -> 4 | N7: =$BJ9 -> 4 | T7: =CJ9 -> 4 | Z7: =$DJ9 -> 4 | BA7: =0.01*BB2*B15/(BI2)^0.5 -> 1.1795266 | DY7: =BA7 -> 1.1795266
J8: =IF(AU11&" "&$AZ$2="0.0001 GPM","0 GPM",AU11&" "&$AZ$2) -> 1.87 GPM | P8: =IF(BU11&" "&$AZ$2="0.0001 GPM","0 GPM",BU11&" "&$AZ$2) -> 1.24 GPM | V8: =IF(CU11&" "&$AZ$2="0.0001 GPM","0 GPM",CU11&" "&$AZ$2) -> 1.29 GPM | AB8: =IF(DU11&" "&$AZ$2="0.0001 GPM","0 GPM",DU11&" "&$AZ$2) -> 0.98 GPM | AE8: FALSE | AF8: Pos4 | AJ8: Pos | AK8: ="C"&(6-AM9) -> C4 | AL8: ="KvC"&(6-AM9) -> KvC4 | AM8: Nb | AN8: ="KvL"&(6-AM9) -> KvL4 | AO8: ="Kvs"&(6-AM9) -> Kvs4 | AP8: ="D1" -> D1 | AQ8: ="D2" -> D2 | AR8: KvD | AS8: PD | AT8: ="q45" -> q45 | AU8: ="q4" -> q4 | BE8: FALSE | BF8: Pos4 | BJ8: Pos | BK8: ="C"&(6-BM9) -> C4 | BL8: ="KvC"&(6-BM9) -> KvC4 | BM8: Nb | BN8: ="KvL"&(6-BM9) -> KvL4 | BO8: ="Kvs"&(6-BM9) -> Kvs4 | BP8: ="D1" -> D1 | BQ8: ="D2" -> D2 | BR8: KvD | BS8: PD | BT8: ="q45" -> q45 | BU8: ="q4" -> q4 | CE8: FALSE | CF8: Pos4 | CJ8: Pos | CK8: ="C"&(6-CM9) -> C4 | CL8: ="KvC"&(6-CM9) -> KvC4 | CM8: Nb | CN8: ="KvL"&(6-CM9) -> KvL4 | CO8: ="Kvs"&(6-CM9) -> Kvs4 | CP8: ="D1" -> D1 | CQ8: ="D2" -> D2 | CR8: KvD | CS8: PD | CT8: ="q45" -> q45 | CU8: ="q4" -> q4 | DE8: FALSE | DF8: Pos4 | DJ8: Pos | DK8: ="C"&(6-DM9) -> C4 | DL8: ="KvC"&(6-DM9) -> KvC4 | DM8: Nb | DN8: ="KvL"&(6-DM9) -> KvL4 | DO8: ="Kvs"&(6-DM9) -> Kvs4 | DP8: ="D1" -> D1 | DQ8: ="D2" -> D2 | DR8: KvD | DS8: PD | DT8: ="q45" -> q45 | DU8: ="q4" -> q4
J9: =IF($AW9=0,"0",$AW9) -> 207.2384056 | K9: % | P9: =IF($BW9=0,"0",$BW9) -> 136.9844734 | Q9: % | V9: =IF($CW9=0,"0",$CW9) -> 142.5832359 | W9: % | AB9: =IF($DW9=0,"0",$DW9) -> 109.1186159 | AC9: % | AE9: 400 | AF9: =IF(AE8=TRUE,0,AE9) -> 400 | AJ9: =AF9/100+0.0000000000001 -> 4 | AK9: =Units!$C$21*$BC$2 -> 5 | AL9: =0.01*$AG$2/AK9^0.5 -> 0.9136573756 | AM9: 2 | AN9: =0.01*$AG$2/$AM$2^0.5*AM9 -> 2.889238308 | AO9: =$AK$2*(0.4/(4/AJ9-0.6))+10^-10 -> 1.1795266 | AP9: =AR4 -> 0.646053326 | AQ9: =1/(1/AL9^2+1/AO9^2)^0.5 -> 0.722309577 | AR9: =AQ9+AP9 -> 1.368362903 | AS9: =IF(AS14-(0.01*AT14/AN9)^2<0.0002,0,AS14-(0.01*AT14/AN9)^2) -> 34.35820541 | AT9: =AT14-AU9 -> 378.6897956 | AU9: =100*AQ9*AS9^0.5 -> 423.3880627 | AV9: =(0.01*AU9/AO9)^2 -> 12.88432703 | AW9: =100*AU9/$AG$2 -> 207.2384056 | BE9: 400 | BF9: =IF(BE8=TRUE,0,BE9) -> 400 | BJ9: =BF9/100+0.0000000000001 -> 4 | BK9: =Units!$D$21*BC2 -> 12 | BL9: =0.01*$AG$2/BK9^0.5 -> 0.5897633 | BM9: 2 | BN9: =0.01*$AG$2/$AM$2^0.5*BM9 -> 2.889238308 | BO9: =$AK$2*(0.4/(4/BJ9-0.6))+10^-10 -> 1.1795266 | BP9: =BR4 -> 0.5460147172 | BQ9: =1/(1/BL9^2+1/BO9^2)^0.5 -> 0.5275003318 | BR9: =BQ9+BP9 -> 1.073515049 | BS9: =IF(BS14-(0.01*BT14/BN9)^2<0.0002,0,BS14-(0.01*BT14/BN9)^2) -> 28.14711891 | BT9: =BT14-BU9 -> 289.6818749 | BU9: =100*BQ9*BS9^0.5 -> 279.8592791 | BV9: =(0.01*BU9/BO9)^2 -> 5.629423782 | BW9: =100*BU9/$AG$2 -> 136.9844734 | CE9: 400 | CF9: =IF(CE8=TRUE,0,CE9) -> 400 | CJ9: =CF9/100+0.0000000000001 -> 4 | CK9: =Units!$E$21*BC2 -> 5 | CL9: =0.01*$AG$2/CK9^0.5 -> 0.9136573756 | CM9: 2 | CN9: =0.01*$AG$2/$AM$2^0.5*CM9 -> 2.889238308 | CO9: =$AK$2*(0.4/(4/CJ9-0.6))+10^-10 -> 1.1795266 | CP9: =CR4 -> 0.5897633 | CQ9: =1/(1/CL9^2+1/CO9^2)^0.5 -> 0.722309577 | CR9: =CQ9+CP9 -> 1.312072877 | CS9: =IF(CS14-(0.01*CT14/CN9)^2<0.0002,0,CS14-(0.01*CT14/CN9)^2) -> 16.26398332 | CT9: =CT14-CU9 -> 237.8434544 | CU9: =100*CQ9*CS9^0.5 -> 291.2975509 | CV9: =(0.01*CU9/CO9)^2 -> 6.098993746 | CW9: =100*CU9/$AG$2 -> 142.5832359 | DE9: 400 | DF9: =IF(DE8=TRUE,0,DE9) -> 400 | DJ9: =DF9/100+0.0000000000001 -> 4 | DK9: =Units!$F$21*BC2 -> 6 | DL9: =0.01*$AG$2/DK9^0.5 -> 0.8340512574 | DM9: 2 | DN9: =0.01*$AG$2/$AM$2^0.5*DM9 -> 2.889238308 | DO9: =$AK$2*(0.4/(4/DJ9-0.6))+10^-10 -> 1.1795266 | DP9: =DR4 -> 0.481539718 | DQ9: =1/(1/DL9^2+1/DO9^2)^0.5 -> 0.681 | DR9: =DQ9+DP9 -> 1.162539718 | DS9: =IF(DS14-(0.01*DT14/DN9)^2<0.0002,0,DS14-(0.01*DT14/DN9)^2) -> 10.7161851 | DT9: =DT14-DU9 -> 157.6348426 | DU9: =100*DQ9*DS9^0.5 -> 222.9293323 | DV9: =(0.01*DU9/DO9)^2 -> 3.572061699 | DW9: =100*DU9/$AG$2 -> 109.1186159
G10: =IF(H7=0.0000000000001,0,AV11) -> 12.9 | M10: =IF(N7=0.0000000000001,0,BV11) -> 5.63 | S10: =IF(T7=0.0000000000001,0,CV11) -> 6.1 | Y10: =IF(Z7=0.0000000000001,0,DV11) -> 3.58 | AU10: =$AU9/$AR$2 -> 1.865145651 | AV10: =$AV9/$BC$2 -> 12.88432703 | BU10: =BU9/$AR$2 -> 1.23286026 | BV10: =BV9/$BC$2 -> 5.629423782 | CU10: =CU9/$AR$2 -> 1.283249123 | CV10: =CV9/$BC$2 -> 6.098993746 | DU10: =DU9/$AR$2 -> 0.982067543 | DV10: =DV9/$BC$2 -> 3.572061699
AU11: =ROUND(CEILING(AU10,IF(AU10>=100,1,IF(AND(AU10<100,AU10>=10),0.1,IF(AND(AU10<10,AU10>=1),0.01,IF(AND(AU10<1,AU10>=0.1),0.001,0.0001))))),2) -> 1.87 | AV11: =CEILING(AV10,IF(AV10>=100,1,IF(AND(AV10<100,AV10>=10),0.1,IF(AND(AV10<10,AV10>=1),0.01,IF(AND(AV10<1,AV10>=0.1),0.001,0.0001))))) -> 12.9 | BU11: =ROUND(CEILING(BU10,IF(BU10>=100,1,IF(AND(BU10<100,BU10>=10),0.1,IF(AND(BU10<10,BU10>=1),0.01,IF(AND(BU10<1,BU10>=0.1),0.001,0.0001))))),2) -> 1.24 | BV11: =CEILING(BV10,IF(BV10>=100,1,IF(AND(BV10<100,BV10>=10),0.1,IF(AND(BV10<10,BV10>=1),0.01,IF(AND(BV10<1,BV10>=0.1),0.001,0.0001))))) -> 5.63 | CU11: =ROUND(CEILING(CU10,IF(CU10>=100,1,IF(AND(CU10<100,CU10>=10),0.1,IF(AND(CU10<10,CU10>=1),0.01,IF(AND(CU10<1,CU10>=0.1),0.001,0.0001))))),2) -> 1.29 | CV11: =CEILING(CV10,IF(CV10>=100,1,IF(AND(CV10<100,CV10>=10),0.1,IF(AND(CV10<10,CV10>=1),0.01,IF(AND(CV10<1,CV10>=0.1),0.001,0.0001))))) -> 6.1 | DU11: =ROUND(CEILING(DU10,IF(DU10>=100,1,IF(AND(DU10<100,DU10>=10),0.1,IF(AND(DU10<10,DU10>=1),0.01,IF(AND(DU10<1,DU10>=0.1),0.001,0.0001))))),2) -> 0.98 | DV11: =CEILING(DV10,IF(DV10>=100,1,IF(AND(DV10<100,DV10>=10),0.1,IF(AND(DV10<10,DV10>=1),0.01,IF(AND(DV10<1,DV10>=0.1),0.001,0.0001))))) -> 3.58
B12: Presetting for | H12: =AJ14 -> 4 | N12: =$BJ14 -> 4 | T12: =CJ14 -> 4 | Z12: =$DJ14 -> 4
B13: Flow | C13: Dp | D13: Pos. | J13: =IF(AU16&" "&$AZ$2="0.0001 GPM","0 GPM",AU16&" "&$AZ$2) -> 1.95 GPM | P13: =IF(BU16&" "&$AZ$2="0.0001 GPM","0 GPM",BU16&" "&$AZ$2) -> 1.81 GPM | V13: =IF(CU16&" "&$AZ$2="0.0001 GPM","0 GPM",CU16&" "&$AZ$2) -> 1.33 GPM | AB13: =IF(DU16&" "&$AZ$2="0.0001 GPM","0 GPM",DU16&" "&$AZ$2) -> 1.06 GPM | AE13: FALSE | AF13: Pos3 | AJ13: Pos | AK13: ="C"&(6-AM14) -> C3 | AL13: ="KvC"&(6-AM14) -> KvC3 | AM13: Nb | AN13: ="KvL"&(6-AM14) -> KvL3 | AO13: ="Kvs"&(6-AM14) -> Kvs3 | AP13: ="C1" -> C1 | AQ13: ="C2" -> C2 | AR13: KvC | AS13: PC | AT13: ="q34" -> q34 | AU13: ="q3" -> q3 | BE13: FALSE | BF13: Pos3 | BJ13: Pos | BK13: ="C"&(6-BM14) -> C3 | BL13: ="KvC"&(6-BM14) -> KvC3 | BM13: Nb | BN13: ="KvL"&(6-BM14) -> KvL3 | BO13: ="Kvs"&(6-BM14) -> Kvs3 | BP13: ="C1" -> C1 | BQ13: ="C2" -> C2 | BR13: KvC | BS13: PC | BT13: ="q34" -> q34 | BU13: ="q3" -> q3 | CE13: FALSE | CF13: Pos3 | CJ13: Pos | CK13: ="C"&(6-CM14) -> C3 | CL13: ="KvC"&(6-CM14) -> KvC3 | CM13: Nb | CN13: ="KvL"&(6-CM14) -> KvL3 | CO13: ="Kvs"&(6-CM14) -> Kvs3 | CP13: ="C1" -> C1 | CQ13: ="C2" -> C2 | CR13: KvC | CS13: PC | CT13: ="q34" -> q34 | CU13: ="q3" -> q3 | DE13: FALSE | DF13: Pos3 | DJ13: Pos | DK13: ="C"&(6-DM14) -> C3 | DL13: ="KvC"&(6-DM14) -> KvC3 | DM13: Nb | DN13: ="KvL"&(6-DM14) -> KvL3 | DO13: ="Kvs"&(6-DM14) -> Kvs3 | DP13: ="C1" -> C1 | DQ13: ="C2" -> C2 | DR13: KvC | DS13: PC | DT13: ="q34" -> q34 | DU13: ="q3" -> q3
B14: =AZ2 -> GPM | C14: =BA2 -> kPa | D14: =IF(DY3>DY7,">Kvs","") ->  | J14: =IF($AW14=0,"0",$AW14) -> 216.1914472 | K14: % | P14: =IF($BW14=0,"0",$BW14) -> 200.1029304 | Q14: % | V14: =IF($CW14=0,"0",$CW14) -> 147.6410215 | W14: % | AB14: =IF($DW14=0,"0",$DW14) -> 117.6205932 | AC14: % | AE14: 400 | AF14: =IF(AE13=TRUE,0,AE14) -> 400 | AJ14: =AF14/100+0.0000000000001 -> 4 | AK14: =Units!$C$22*$BC$2 -> 6 | AL14: =0.01*$AG$2/AK14^0.5 -> 0.8340512574 | AM14: 3 | AN14: =0.01*$AG$2/$AM$2^0.5*AM14 -> 4.333857462 | AO14: =$AK$2*(0.4/(4/AJ14-0.6))+10^-10 -> 1.1795266 | AP14: =1/(1/AR9^2+1/AN9^2)^0.5 -> 1.236678368 | AQ14: =1/(1/AL14^2+1/AO14^2)^0.5 -> 0.681 | AR14: =AQ14+AP14 -> 1.917678368 | AS14: =IF(AS19-(0.01*AT19/AN14)^2<0.0002,0,AS19-(0.01*AT19/AN14)^2) -> 42.06486766 | AT14: =AT19-AU14 -> 802.0778583 | AU14: =100*AQ14*AS14^0.5 -> 441.6791267 | AV14: =(0.01*AU14/AO14)^2 -> 14.02162255 | AW14: =100*AU14/$AG$2 -> 216.1914472 | BE14: 400 | BF14: =IF(BE13=TRUE,0,BE14) -> 400 | BJ14: =BF14/100+0.0000000000001 -> 4 | BK14: =Units!$D$22*BC2 -> 5 | BL14: =0.01*$AG$2/BK14^0.5 -> 0.9136573756 | BM14: 3 | BN14: =0.01*$AG$2/$AM$2^0.5*BM14 -> 4.333857462 | BO14: =$AK$2*(0.4/(4/BJ14-0.6))+10^-10 -> 1.1795266 | BP14: =1/(1/BR9^2+1/BN9^2)^0.5 -> 1.006298137 | BQ14: =1/(1/BL14^2+1/BO14^2)^0.5 -> 0.722309577 | BR14: =BQ14+BP14 -> 1.728607714 | BS14: =IF(BS19-(0.01*BT19/BN14)^2<0.0002,0,BS19-(0.01*BT19/BN14)^2) -> 32.03294619 | BT14: =BT19-BU14 -> 569.541154 | BU14: =100*BQ14*BS14^0.5 -> 408.8102867 | BV14: =(0.01*BU14/BO14)^2 -> 12.01235482 | BW14: =100*BU14/$AG$2 -> 200.1029304 | CE14: 400 | CF14: =IF(CE13=TRUE,0,CE14) -> 400 | CJ14: =CF14/100+0.0000000000001 -> 4 | CK14: =Units!$E$22*BC2 -> 6 | CL14: =0.01*$AG$2/CK14^0.5 -> 0.8340512574 | CM14: 3 | CN14: =0.01*$AG$2/$AM$2^0.5*CM14 -> 4.333857462 | CO14: =$AK$2*(0.4/(4/CJ14-0.6))+10^-10 -> 1.1795266 | CP14: =1/(1/CR9^2+1/CN9^2)^0.5 -> 1.194656697 | CQ14: =1/(1/CL14^2+1/CO14^2)^0.5 -> 0.681 | CR14: =CQ14+CP14 -> 1.875656697 | CS14: =IF(CS19-(0.01*CT19/CN14)^2<0.0002,0,CS19-(0.01*CT19/CN14)^2) -> 19.6180841 | CT14: =CT19-CU14 -> 529.1410053 | CU14: =100*CQ14*CS14^0.5 -> 301.6306069 | CV14: =(0.01*CU14/CO14)^2 -> 6.539361366 | CW14: =100*CU14/$AG$2 -> 147.6410215 | DE14: 400 | DF14: =IF(DE13=TRUE,0,DE14) -> 400 | DJ14: =DF14/100+0.0000000000001 -> 4 | DK14: =Units!$F$22*BC2 -> 6 | DL14: =0.01*$AG$2/DK14^0.5 -> 0.8340512574 | DM14: 3 | DN14: =0.01*$AG$2/$AM$2^0.5*DM14 -> 4.333857462 | DO14: =$AK$2*(0.4/(4/DJ14-0.6))+10^-10 -> 1.1795266 | DP14: =1/(1/DR9^2+1/DN9^2)^0.5 -> 1.078507781 | DQ14: =1/(1/DL14^2+1/DO14^2)^0.5 -> 0.681 | DR14: =DQ14+DP14 -> 1.759507781 | DS14: =IF(DS19-(0.01*DT19/DN14)^2<0.0002,0,DS19-(0.01*DT19/DN14)^2) -> 12.45114354 | DT14: =DT19-DU14 -> 380.5641748 | DU14: =100*DQ14*DS14^0.5 -> 240.2988718 | DV14: =(0.01*DU14/DO14)^2 -> 4.15038118 | DW14: =100*DU14/$AG$2 -> 117.6205932
B15: =Units!$Z$13 -> 0.9 | C15: 3 | D15: =IF(DY3>DY7,"?",FP3) -> 3.998046875 | G15: =IF(H12=0.0000000000001,0,AV16) -> 14.1 | M15: =IF(N12=0.0000000000001,0,BV16) -> 12.1 | S15: =IF(T12=0.0000000000001,0,CV16) -> 6.54 | Y15: =IF(Z12=0.0000000000001,0,DV16) -> 4.16 | AU15: =$AU14/$AR$2 -> 1.945723025 | AV15: =$AV14/$BC$2 -> 14.02162255 | BU15: =BU14/$AR$2 -> 1.800926373 | BV15: =BV14/$BC$2 -> 12.01235482 | CU15: =CU14/$AR$2 -> 1.328769193 | CV15: =CV14/$BC$2 -> 6.539361366 | DU15: =DU14/$AR$2 -> 1.058585338 | DV15: =DV14/$BC$2 -> 4.15038118
AU16: =ROUND(CEILING(AU15,IF(AU15>=100,1,IF(AND(AU15<100,AU15>=10),0.1,IF(AND(AU15<10,AU15>=1),0.01,IF(AND(AU15<1,AU15>=0.1),0.001,0.0001))))),2) -> 1.95 | AV16: =CEILING(AV15,IF(AV15>=100,1,IF(AND(AV15<100,AV15>=10),0.1,IF(AND(AV15<10,AV15>=1),0.01,IF(AND(AV15<1,AV15>=0.1),0.001,0.0001))))) -> 14.1 | BU16: =ROUND(CEILING(BU15,IF(BU15>=100,1,IF(AND(BU15<100,BU15>=10),0.1,IF(AND(BU15<10,BU15>=1),0.01,IF(AND(BU15<1,BU15>=0.1),0.001,0.0001))))),2) -> 1.81 | BV16: =CEILING(BV15,IF(BV15>=100,1,IF(AND(BV15<100,BV15>=10),0.1,IF(AND(BV15<10,BV15>=1),0.01,IF(AND(BV15<1,BV15>=0.1),0.001,0.0001))))) -> 12.1 | CU16: =ROUND(CEILING(CU15,IF(CU15>=100,1,IF(AND(CU15<100,CU15>=10),0.1,IF(AND(CU15<10,CU15>=1),0.01,IF(AND(CU15<1,CU15>=0.1),0.001,0.0001))))),2) -> 1.33 | CV16: =CEILING(CV15,IF(CV15>=100,1,IF(AND(CV15<100,CV15>=10),0.1,IF(AND(CV15<10,CV15>=1),0.01,IF(AND(CV15<1,CV15>=0.1),0.001,0.0001))))) -> 6.54 | DU16: =ROUND(CEILING(DU15,IF(DU15>=100,1,IF(AND(DU15<100,DU15>=10),0.1,IF(AND(DU15<10,DU15>=1),0.01,IF(AND(DU15<1,DU15>=0.1),0.001,0.0001))))),2) -> 1.06 | DV16: =CEILING(DV15,IF(DV15>=100,1,IF(AND(DV15<100,DV15>=10),0.1,IF(AND(DV15<10,DV15>=1),0.01,IF(AND(DV15<1,DV15>=0.1),0.001,0.0001))))) -> 4.16
H17: =AJ19 -> 4 | N17: =$BJ19 -> 4 | T17: =CJ19 -> 4 | Z17: =$DJ19 -> 4
J18: =IF(AU21&" "&$AZ$2="0.0001 GPM","0 GPM",AU21&" "&$AZ$2) -> 2.26 GPM | P18: =IF(BU21&" "&$AZ$2="0.0001 GPM","0 GPM",BU21&" "&$AZ$2) -> 1.83 GPM | V18: =IF(CU21&" "&$AZ$2="0.0001 GPM","0 GPM",CU21&" "&$AZ$2) -> 1.38 GPM | AB18: =IF(DU21&" "&$AZ$2="0.0001 GPM","0 GPM",DU21&" "&$AZ$2) -> 1.04 GPM | AE18: FALSE | AF18: Pos2 | AJ18: Pos | AK18: ="C"&(6-AM19) -> C2 | AL18: ="KvC"&(6-AM19) -> KvC2 | AM18: Nb | AN18: ="KvL"&(6-AM19) -> KvL2 | AO18: ="Kvs"&(6-AM19) -> Kvs2 | AP18: ="B1" -> B1 | AQ18: ="B2" -> B2 | AR18: KvB | AS18: PB | AT18: ="q23" -> q23 | AU18: ="q2" -> q2 | BE18: FALSE | BF18: Pos2 | BJ18: Pos | BK18: ="C"&(6-BM19) -> C2 | BL18: ="KvC"&(6-BM19) -> KvC2 | BM18: Nb | BN18: ="KvL"&(6-BM19) -> KvL2 | BO18: ="Kvs"&(6-BM19) -> Kvs2 | BP18: ="B1" -> B1 | BQ18: ="B2" -> B2 | BR18: KvB | BS18: PB | BT18: ="q23" -> q23 | BU18: ="q2" -> q2 | CE18: FALSE | CF18: Pos2 | CJ18: Pos | CK18: ="C"&(6-CM19) -> C2 | CL18: ="KvC"&(6-CM19) -> KvC2 | CM18: Nb | CN18: ="KvL"&(6-CM19) -> KvL2 | CO18: ="Kvs"&(6-CM19) -> Kvs2 | CP18: ="B1" -> B1 | CQ18: ="B2" -> B2 | CR18: KvB | CS18: PB | CT18: ="q23" -> q23 | CU18: ="q2" -> q2 | DE18: FALSE | DF18: Pos2 | DJ18: Pos | DK18: ="C"&(6-DM19) -> C2 | DL18: ="KvC"&(6-DM19) -> KvC2 | DM18: Nb | DN18: ="KvL"&(6-DM19) -> KvL2 | DO18: ="Kvs"&(6-DM19) -> Kvs2 | DP18: ="B1" -> B1 | DQ18: ="B2" -> B2 | DR18: KvB | DS18: PB | DT18: ="q23" -> q23 | DU18: ="q2" -> q2
B19: Pumping costs | J19: =IF($AW19=0,"0",$AW19) -> 250.7513001 | K19: % | P19: =IF($BW19=0,"0",$BW19) -> 203.1121107 | Q19: % | V19: =IF($CW19=0,"0",$CW19) -> 152.6195196 | W19: % | AB19: =IF($DW19=0,"0",$DW19) -> 114.8257604 | AC19: % | AE19: 400 | AF19: =IF(AE18=TRUE,0,AE19) -> 400 | AJ19: =AF19/100+0.0000000000001 -> 4 | AK19: =Units!$C$23*BC2 -> 5 | AL19: =0.01*$AG$2/AK19^0.5 -> 0.9136573756 | AM19: 4 | AN19: =0.01*$AG$2/$AM$2^0.5*AM19 -> 5.778476616 | AO19: =$AK$2*(0.4/(4/AJ19-0.6))+10^-10 -> 1.1795266 | AP19: =1/(1/AR14^2+1/AN14^2)^0.5 -> 1.753667873 | AQ19: =1/(1/AL19^2+1/AO19^2)^0.5 -> 0.722309577 | AR19: =AQ19+AP19 -> 2.47597745 | AS19: =IF(AS24-(0.01*AT24/AN19)^2<0.0002,0,AS24-(0.01*AT24/AN19)^2) -> 50.3009716 | AT19: =AT24-AU19 -> 1243.756985 | AU19: =100*AQ19*AS19^0.5 -> 512.2849061 | AV19: =(0.01*AU19/AO19)^2 -> 18.86286435 | AW19: =100*AU19/$AG$2 -> 250.7513001 | BE19: 400 | BF19: =IF(BE18=TRUE,0,BE19) -> 400 | BJ19: =BF19/100+0.0000000000001 -> 4 | BK19: =Units!$D$23*BC2 -> 6 | BL19: =0.01*$AG$2/BK19^0.5 -> 0.8340512574 | BM19: 4 | BN19: =0.01*$AG$2/$AM$2^0.5*BM19 -> 5.778476616 | BO19: =$AK$2*(0.4/(4/BJ19-0.6))+10^-10 -> 1.1795266 | BP19: =1/(1/BR14^2+1/BN14^2)^0.5 -> 1.605601683 | BQ19: =1/(1/BL19^2+1/BO19^2)^0.5 -> 0.681 | BR19: =BQ19+BP19 -> 2.286601683 | BS19: =IF(BS24-(0.01*BT24/BN19)^2<0.0002,0,BS24-(0.01*BT24/BN19)^2) -> 37.12907657 | BT19: =BT24-BU19 -> 978.3514407 | BU19: =100*BQ19*BS19^0.5 -> 414.9580422 | BV19: =(0.01*BU19/BO19)^2 -> 12.37635886 | BW19: =100*BU19/$AG$2 -> 203.1121107 | CE19: 400 | CF19: =IF(CE18=TRUE,0,CE19) -> 400 | CJ19: =CF19/100+0.0000000000001 -> 4 | CK19: =Units!$E$23*BC2 -> 7 | CL19: =0.01*$AG$2/CK19^0.5 -> 0.7721814184 | CM19: 4 | CN19: =0.01*$AG$2/$AM$2^0.5*CM19 -> 5.778476616 | CO19: =$AK$2*(0.4/(4/CJ19-0.6))+10^-10 -> 1.1795266 | CP19: =1/(1/CR14^2+1/CN14^2)^0.5 -> 1.721359441 | CQ19: =1/(1/CL19^2+1/CO19^2)^0.5 -> 0.646053326 | CR19: =CQ19+CP19 -> 2.367412767 | CS19: =IF(CS24-(0.01*CT24/CN19)^2<0.0002,0,CS24-(0.01*CT24/CN19)^2) -> 23.29271776 | CT19: =CT24-CU19 -> 830.7716122 | CU19: =100*CQ19*CS19^0.5 -> 311.8016785 | CV19: =(0.01*CU19/CO19)^2 -> 6.987815328 | CW19: =100*CU19/$AG$2 -> 152.6195196 | DE19: 400 | DF19: =IF(DE18=TRUE,0,DE19) -> 400 | DJ19: =DF19/100+0.0000000000001 -> 4 | DK19: =Units!$F$23*BC2 -> 8 | DL19: =0.01*$AG$2/DK19^0.5 -> 0.722309577 | DM19: 4 | DN19: =0.01*$AG$2/$AM$2^0.5*DM19 -> 5.778476616 | DO19: =$AK$2*(0.4/(4/DJ19-0.6))+10^-10 -> 1.1795266 | DP19: =1/(1/DR14^2+1/DN14^2)^0.5 -> 1.630272261 | DQ19: =1/(1/DL19^2+1/DO19^2)^0.5 -> 0.615987677 | DR19: =DQ19+DP19 -> 2.246259938 | DS19: =IF(DS24-(0.01*DT24/DN19)^2<0.0002,0,DS24-(0.01*DT24/DN19)^2) -> 14.50345078 | DT19: =DT24-DU19 -> 620.8630467 | DU19: =100*DQ19*DS19^0.5 -> 234.5890285 | DV19: =(0.01*DU19/DO19)^2 -> 3.955486575 | DW19: =100*DU19/$AG$2 -> 114.8257604
B20: =(B34+3)*AG48/BB34/1.03 -> 613.9812997 | C20: % | G20: =IF(H17=0.0000000000001,0,AV21) -> 18.9 | M20: =IF(N17=0.0000000000001,0,BV21) -> 12.4 | S20: =IF(T17=0.0000000000001,0,CV21) -> 6.99 | Y20: =IF(Z17=0.0000000000001,0,DV21) -> 3.96 | AU20: =$AU19/$AR$2 -> 2.256761701 | AV20: =$AV19/$BC$2 -> 18.86286435 | BU20: =BU19/$AR$2 -> 1.828008997 | BV20: =BV19/$BC$2 -> 12.37635886 | CU20: =CU19/$AR$2 -> 1.373575676 | CV20: =CV19/$BC$2 -> 6.987815328 | DU20: =DU19/$AR$2 -> 1.033431844 | DV20: =DV19/$BC$2 -> 3.955486575
AU21: =ROUND(CEILING(AU20,IF(AU20>=100,1,IF(AND(AU20<100,AU20>=10),0.1,IF(AND(AU20<10,AU20>=1),0.01,IF(AND(AU20<1,AU20>=0.1),0.001,0.0001))))),2) -> 2.26 | AV21: =CEILING(AV20,IF(AV20>=100,1,IF(AND(AV20<100,AV20>=10),0.1,IF(AND(AV20<10,AV20>=1),0.01,IF(AND(AV20<1,AV20>=0.1),0.001,0.0001))))) -> 18.9 | BU21: =ROUND(CEILING(BU20,IF(BU20>=100,1,IF(AND(BU20<100,BU20>=10),0.1,IF(AND(BU20<10,BU20>=1),0.01,IF(AND(BU20<1,BU20>=0.1),0.001,0.0001))))),2) -> 1.83 | BV21: =CEILING(BV20,IF(BV20>=100,1,IF(AND(BV20<100,BV20>=10),0.1,IF(AND(BV20<10,BV20>=1),0.01,IF(AND(BV20<1,BV20>=0.1),0.001,0.0001))))) -> 12.4 | CU21: =ROUND(CEILING(CU20,IF(CU20>=100,1,IF(AND(CU20<100,CU20>=10),0.1,IF(AND(CU20<10,CU20>=1),0.01,IF(AND(CU20<1,CU20>=0.1),0.001,0.0001))))),2) -> 1.38 | CV21: =CEILING(CV20,IF(CV20>=100,1,IF(AND(CV20<100,CV20>=10),0.1,IF(AND(CV20<10,CV20>=1),0.01,IF(AND(CV20<1,CV20>=0.1),0.001,0.0001))))) -> 6.99 | DU21: =ROUND(CEILING(DU20,IF(DU20>=100,1,IF(AND(DU20<100,DU20>=10),0.1,IF(AND(DU20<10,DU20>=1),0.01,IF(AND(DU20<1,DU20>=0.1),0.001,0.0001))))),2) -> 1.04 | DV21: =CEILING(DV20,IF(DV20>=100,1,IF(AND(DV20<100,DV20>=10),0.1,IF(AND(DV20<10,DV20>=1),0.01,IF(AND(DV20<1,DV20>=0.1),0.001,0.0001))))) -> 3.96
B22: Pump head | H22: =AJ24 -> 4 | N22: =$BJ24 -> 4 | T22: =CJ24 -> 4 | Z22: =$DJ24 -> 4
B23: Optimum | J23: =IF(AU26&" "&$AZ$2="0.0001 GPM","0 GPM",AU26&" "&$AZ$2) -> 2.32 GPM | P23: =IF(BU26&" "&$AZ$2="0.0001 GPM","0 GPM",BU26&" "&$AZ$2) -> 1.87 GPM | V23: =IF(CU26&" "&$AZ$2="0.0001 GPM","0 GPM",CU26&" "&$AZ$2) -> 1.66 GPM | AB23: =IF(DU26&" "&$AZ$2="0.0001 GPM","0 GPM",DU26&" "&$AZ$2) -> 1.31 GPM | AE23: FALSE | AF23: Pos1 | AJ23: Pos | AK23: ="C"&(6-AM24) -> C1 | AL23: ="KvC"&(6-AM24) -> KvC1 | AM23: Nb | AN23: ="KvL"&(6-AM24) -> KvL1 | AO23: ="Kvs"&(6-AM24) -> Kvs1 | AP23: ="A1" -> A1 | AQ23: ="A2" -> A2 | AR23: KvA | AS23: PA | AT23: ="q12" -> q12 | AU23: ="q1" -> q1 | BE23: FALSE | BF23: Pos1 | BJ23: Pos | BK23: ="C"&(6-BM24) -> C1 | BL23: ="KvC"&(6-BM24) -> KvC1 | BM23: Nb | BN23: ="KvL"&(6-BM24) -> KvL1 | BO23: ="Kvs"&(6-BM24) -> Kvs1 | BP23: ="A1" -> A1 | BQ23: ="A2" -> A2 | BR23: KvA | BS23: PA | BT23: ="q12" -> q12 | BU23: ="q1" -> q1 | CE23: FALSE | CF23: Pos1 | CJ23: Pos | CK23: ="C"&(6-CM24) -> C1 | CL23: ="KvC"&(6-CM24) -> KvC1 | CM23: Nb | CN23: ="KvL"&(6-CM24) -> KvL1 | CO23: ="Kvs"&(6-CM24) -> Kvs1 | CP23: ="A1" -> A1 | CQ23: ="A2" -> A2 | CR23: KvA | CS23: PA | CT23: ="q12" -> q12 | CU23: ="q1" -> q1 | DE23: FALSE | DF23: Pos1 | DJ23: Pos | DK23: ="C"&(6-DM24) -> C1 | DL23: ="KvC"&(6-DM24) -> KvC1 | DM23: Nb | DN23: ="KvL"&(6-DM24) -> KvL1 | DO23: ="Kvs"&(6-DM24) -> Kvs1 | DP23: ="A1" -> A1 | DQ23: ="A2" -> A2 | DR23: KvA | DS23: PA | DT23: ="q12" -> q12 | DU23: ="q1" -> q1
B24: =BB34&" "&$BA$2 -> 80 kPa | J24: =IF($AW24=0,"0",$AW24) -> 257.198803 | K24: % | P24: =IF($BW24=0,"0",$BW24) -> 207.2269016 | Q24: % | V24: =IF($CW24=0,"0",$CW24) -> 184.3990225 | W24: % | AB24: =IF($DW24=0,"0",$DW24) -> 144.4604951 | AC24: % | AE24: 400 | AF24: =IF(AE23=TRUE,0,AE24) -> 400 | AJ24: =AF24/100+0.0000000000001 -> 4 | AK24: =Units!$C$24*BC2 -> 6 | AL24: =0.01*$AG$2/AK24^0.5 -> 0.8340512574 | AM24: 5 | AN24: =0.01*$AG$2/$AM$2^0.5*AM24 -> 7.22309577 | AO24: =$AK$2*(0.4/(4/AJ24-0.6))+10^-10 -> 1.1795266 | AP24: =1/(1/AR19^2+1/AN19^2)^0.5 -> 2.275855448 | AQ24: =1/(1/AL24^2+1/AO24^2)^0.5 -> 0.681 | AR24: =AQ24+AP24 -> 2.956855448 | AS24: =AS29-(0.01*AU29/AN24)^2-(0.01*AU29/AO29)^2 -> 59.53610182 | AT24: =AU29-AU24 -> 1756.041891 | AU24: =100*AQ24*AS24^0.5 -> 525.4571545 | AV24: =(0.01*AU24/AO24)^2 -> 19.84536727 | AW24: =100*AU24/$AG$2 -> 257.198803 | BE24: 400 | BF24: =IF(BE23=TRUE,0,BE24) -> 400 | BJ24: =BF24/100+0.0000000000001 -> 4 | BK24: =Units!$D$24*BC2 -> 7 | BL24: =0.01*$AG$2/BK24^0.5 -> 0.7721814184 | BM24: 5 | BN24: =0.01*$AG$2/$AM$2^0.5*BM24 -> 7.22309577 | BO24: =$AK$2*(0.4/(4/BJ24-0.6))+10^-10 -> 1.1795266 | BP24: =1/(1/BR19^2+1/BN19^2)^0.5 -> 2.126187005 | BQ24: =1/(1/BL24^2+1/BO24^2)^0.5 -> 0.646053326 | BR24: =BQ24+BP24 -> 2.772240331 | BS24: =BS29-(0.01*BU29/BN24)^2-(0.01*BU29/BO29)^2 -> 42.94298873 | BT24: =BU29-BU24 -> 1393.309483 | BU24: =100*BQ24*BS24^0.5 -> 423.3645599 | BV24: =(0.01*BU24/BO24)^2 -> 12.88289662 | BW24: =100*BU24/$AG$2 -> 207.2269016 | CE24: 400 | CF24: =IF(CE23=TRUE,0,CE24) -> 400 | CJ24: =CF24/100+0.0000000000001 -> 4 | CK24: =Units!$E$24*BC2 -> 5 | CL24: =0.01*$AG$2/CK24^0.5 -> 0.9136573756 | CM24: 5 | CN24: =0.01*$AG$2/$AM$2^0.5*CM24 -> 7.22309577 | CO24: =$AK$2*(0.4/(4/CJ24-0.6))+10^-10 -> 1.1795266 | CP24: =1/(1/CR19^2+1/CN19^2)^0.5 -> 2.190687649 | CQ24: =1/(1/CL24^2+1/CO24^2)^0.5 -> 0.722309577 | CR24: =CQ24+CP24 -> 2.912997226 | CS24: =CS29-(0.01*CU29/CN24)^2-(0.01*CU29/CO29)^2 -> 27.20239958 | CT24: =CU29-CU24 -> 1142.573291 | CU24: =100*CQ24*CS24^0.5 -> 376.7272029 | CV24: =(0.01*CU24/CO24)^2 -> 10.20089984 | CW24: =100*CU24/$AG$2 -> 184.3990225 | DE24: 400 | DF24: =IF(DE23=TRUE,0,DE24) -> 400 | DJ24: =DF24/100+0.0000000000001 -> 4 | DK24: =Units!$F$24*BC2 -> 5 | DL24: =0.01*$AG$2/DK24^0.5 -> 0.9136573756 | DM24: 5 | DN24: =0.01*$AG$2/$AM$2^0.5*DM24 -> 7.22309577 | DO24: =$AK$2*(0.4/(4/DJ24-0.6))+10^-10 -> 1.1795266 | DP24: =1/(1/DR19^2+1/DN19^2)^0.5 -> 2.093637997 | DQ24: =1/(1/DL24^2+1/DO24^2)^0.5 -> 0.722309577 | DR24: =DQ24+DP24 -> 2.815947574 | DS24: =DS29-(0.01*DU29/DN24)^2-(0.01*DU29/DO29)^2 -> 16.69506771 | DT24: =DU29-DU24 -> 855.4520752 | DU24: =100*DQ24*DS24^0.5 -> 295.1327915 | DV24: =(0.01*DU24/DO24)^2 -> 6.260650392 | DW24: =100*DU24/$AG$2 -> 144.4604951
B25: Nominal | G25: =IF(H22=0.0000000000001,0,AV26) -> 19.9 | M25: =IF(N22=0.0000000000001,0,BV26) -> 12.9 | S25: =IF(T22=0.0000000000001,0,CV26) -> 10.3 | Y25: =IF(Z22=0.0000000000001,0,DV26) -> 6.27 | AU25: =$AU24/$AR$2 -> 2.314789227 | AV25: =AV24/$BC$2 -> 19.84536727 | BU25: =BU24/$AR$2 -> 1.865042114 | BV25: =BV24/$BC$2 -> 12.88289662 | CU25: =CU24/$AR$2 -> 1.659591202 | CV25: =CV24/$BC$2 -> 10.20089984 | DU25: =DU24/$AR$2 -> 1.300144456 | DV25: =DV24/$BC$2 -> 6.260650392
B26: =AG48&" "&$BA$2 -> 300 kPa | AU26: =ROUND(CEILING(AU25,IF(AU25>=100,1,IF(AND(AU25<100,AU25>=10),0.1,IF(AND(AU25<10,AU25>=1),0.01,IF(AND(AU25<1,AU25>=0.1),0.001,0.0001))))),2) -> 2.32 | AV26: =IF(CEILING(AV25,IF(AV25>=100,1,IF(AND(AV25<100,AV25>=10),0.1,IF(AND(AV25<10,AV25>=1),0.01,IF(AND(AV25<1,AV25>=0.1),0.001,0.0001)))))=0.0001,0,CEILING(AV25,IF(AV25>=100,1,IF(AND(AV25<100,AV25>=10),0.1,IF(AND(AV25<10,AV25>=1),0.01,IF(AND(AV25<1,AV25>=0.1),0.001,0.0001)))))) -> 19.9 | BU26: =ROUND(CEILING(BU25,IF(BU25>=100,1,IF(AND(BU25<100,BU25>=10),0.1,IF(AND(BU25<10,BU25>=1),0.01,IF(AND(BU25<1,BU25>=0.1),0.001,0.0001))))),2) -> 1.87 | BV26: =IF(CEILING(BV25,IF(BV25>=100,1,IF(AND(BV25<100,BV25>=10),0.1,IF(AND(BV25<10,BV25>=1),0.01,IF(AND(BV25<1,BV25>=0.1),0.001,0.0001)))))=0.0001,0,CEILING(BV25,IF(BV25>=100,1,IF(AND(BV25<100,BV25>=10),0.1,IF(AND(BV25<10,BV25>=1),0.01,IF(AND(BV25<1,BV25>=0.1),0.001,0.0001)))))) -> 12.9 | CU26: =ROUND(CEILING(CU25,IF(CU25>=100,1,IF(AND(CU25<100,CU25>=10),0.1,IF(AND(CU25<10,CU25>=1),0.01,IF(AND(CU25<1,CU25>=0.1),0.001,0.0001))))),2) -> 1.66 | CV26: =IF(CEILING(CV25,IF(CV25>=100,1,IF(AND(CV25<100,CV25>=10),0.1,IF(AND(CV25<10,CV25>=1),0.01,IF(AND(CV25<1,CV25>=0.1),0.001,0.0001)))))=0.0001,0,CEILING(CV25,IF(CV25>=100,1,IF(AND(CV25<100,CV25>=10),0.1,IF(AND(CV25<10,CV25>=1),0.01,IF(AND(CV25<1,CV25>=0.1),0.001,0.0001)))))) -> 10.3 | DU26: =ROUND(CEILING(DU25,IF(DU25>=100,1,IF(AND(DU25<100,DU25>=10),0.1,IF(AND(DU25<10,DU25>=1),0.01,IF(AND(DU25<1,DU25>=0.1),0.001,0.0001))))),2) -> 1.31 | DV26: =IF(CEILING(DV25,IF(DV25>=100,1,IF(AND(DV25<100,DV25>=10),0.1,IF(AND(DV25<10,DV25>=1),0.01,IF(AND(DV25<1,DV25>=0.1),0.001,0.0001)))))=0.0001,0,CEILING(DV25,IF(DV25>=100,1,IF(AND(DV25<100,DV25>=10),0.1,IF(AND(DV25<10,DV25>=1),0.01,IF(AND(DV25<1,DV25>=0.1),0.001,0.0001)))))) -> 6.27
B27: Operating | D27: =AV31&" "&$BA$2 -> 15 kPa | H27: =AJ29 -> 4 | J27: =BV31&" "&$BA$2 -> 9.49 kPa | N27: =$BJ$29 -> 4 | P27: =CV31&" "&$BA$2 -> 6.64 kPa | T27: =$CJ29 -> 4 | V27: =DV31&" "&$BA$2 -> 3.81 kPa | Z27: =DJ29 -> 4
B28: =AH48&" "&$BA$2 -> 126 kPa | AE28: FALSE | AF28: PosF | AJ28: Pos | AO28: ="Kvs"&(6-AM29) -> Kvs6 | AR28: KvF | AS28: pF | AU28: qF | BE28: FALSE | BF28: PosF | BJ28: Pos | BO28: ="Kvs"&(6-BM29) -> Kvs6 | BR28: KvF | BS28: pF | BU28: qF | CE28: FALSE | CF28: PosF | CJ28: Pos | CO28: ="Kvs"&(6-CM29) -> Kvs6 | CR28: KvF | CS28: pF | CU28: qF | DE28: FALSE | DF28: PosF | DJ28: Pos | DO28: ="Kvs"&(6-DM29) -> Kvs6 | DR28: KvF | DS28: pF | DU28: qF
E29: =IF(AJ36=0.010001,"0.00",AJ36) -> 4.000001 | G29: =IF(AU31&" "&$AZ$2="0.0001 GPM","0 GPM",AU31&" "&$AZ$2) -> 10.1 GPM | J29: =IF($AW29=0,"0",$AW29) -> 223.3479242 | K29: % | M29: =IF(BU31&" "&$AZ$2="0.0001 GPM","0 GPM",BU31&" "&$AZ$2) -> 8.01 GPM | P29: =IF($BW29=0,"0",$BW29) -> 177.8437634 | Q29: % | S29: =IF(CU31&" "&$AZ$2="0.0001 GPM","0 GPM",CU31&" "&$AZ$2) -> 6.7 GPM | V29: =IF($CW29=0,"0",$CW29) -> 148.7323048 | W29: % | Y29: =IF(DU31&" "&$AZ$2="0.0001 GPM","0 GPM",DU31&" "&$AZ$2) -> 5.07 GPM | AB29: =IF($DW29=0,"0",$DW29) -> 112.6367956 | AC29: % | AE29: 400 | AF29: =IF(AE28=TRUE,0,AE29) -> 400 | AJ29: =AF29/100+0.0000000000001 -> 4 | AO29: =5*$AK$2*(0.4/(4/AJ29-0.6))+10^-10 -> 5.897633 | AR29: =1/(1/AO29^2+1/AR24^2+1/AN24^2)^0.5 -> 2.482263255 | AS29: =AR39 -> 84.47824944 | AU29: =100*AR29*AS29^0.5 -> 2281.499046 | AV29: =(0.01*AU29/AO29)^2 -> 14.96528857 | AW29: =100*AU29/5/$AG$2 -> 223.3479242 | BE29: 400 | BF29: =IF(BE28=TRUE,0,BE29) -> 400 | BJ29: =BF29/100+0.0000000000001 -> 4 | BO29: =5*$AK$2*(0.4/(4/BJ29-0.6))+10^-10 -> 5.897633 | BR29: =1/(1/BO29^2+1/BR24^2+1/BN24^2)^0.5 -> 2.36998992 | BS29: =AS39 -> 58.75719082 | BU29: =100*BR29*BS29^0.5 -> 1816.674043 | BV29: =(0.01*BU29/BO29)^2 -> 9.488521251 | BW29: =100*BU29/5/$AG$2 -> 177.8437634 | CE29: 400 | CF29: =IF(CE28=TRUE,0,CE29) -> 400 | CJ29: =CF29/100+0.0000000000001 -> 4 | CO29: =5*$AK$2*(0.4/(4/CJ29-0.6))+10^-10 -> 5.897633 | CR29: =1/(1/CO29^2+1/CR24^2+1/CN24^2)^0.5 -> 2.456144383 | CS29: =AT39 -> 38.26304883 | CU29: =100*CR29*CS29^0.5 -> 1519.300494 | CV29: =(0.01*CU29/CO29)^2 -> 6.636389547 | CW29: =100*CU29/5/$AG$2 -> 148.7323048 | DE29: 400 | DF29: =IF(DE28=TRUE,0,DE29) -> 400 | DJ29: =DF29/100+0.0000000000001 -> 4 | DO29: =5*$AK$2*(0.4/(4/DJ29-0.6))+10^-10 -> 5.897633 | DR29: =1/(1/DO29^2+1/DR24^2+1/DN24^2)^0.5 -> 2.397125074 | DS29: =AU39 -> 23.03859157 | DU29: =100*DR29*DS29^0.5 -> 1150.584867 | DV29: =(0.01*DU29/DO29)^2 -> 3.806114314 | DW29: =100*DU29/5/$AG$2 -> 112.6367956
G30: =IF(AU49&" "&$AZ$2="0.0001 GPM","0 GPM",AU49&" "&$AZ$2) -> 10.07 GPM | M30: =IF(BU32&" "&$AZ$2="0.0001 GPM","0 GPM",BU32&" "&$AZ$2) -> 8.03 GPM | S30: =IF(CU32&" "&$AZ$2="0.0001 GPM","0 GPM",CU32&" "&$AZ$2) -> 6.71 GPM | Y30: =IF(DU32&" "&$AZ$2="0.0001 GPM","0 GPM",DU32&" "&$AZ$2) -> 5.09 GPM | AU30: =$AU29/$AR$2 -> 10.05065659 | AV30: =$AV29/$BC$2 -> 14.96528857 | BU30: =BU29/$AR$2 -> 8.002969352 | BV30: =BV29/$BC$2 -> 9.488521251 | CU30: =CU29/$AR$2 -> 6.692953716 | CV30: =CV29/$BC$2 -> 6.636389547 | DU30: =DU29/$AR$2 -> 5.0686558 | DV30: =DV29/$BC$2 -> 3.806114314
AG31: Kv colonnes | AL31: Kv lignes | AU31: =ROUND(CEILING(AU30,IF(AU30>=100,1,IF(AND(AU30<100,AU30>=10),0.1,IF(AND(AU30<10,AU30>=1),0.01,IF(AND(AU30<1,AU30>=0.1),0.001,0.0001))))),2) -> 10.1 | AV31: =ROUND(IF(AU31>0,CEILING(AV30,IF(AV30>=100,1,IF(AND(AV30<100,AV30>=10),0.1,IF(AND(AV30<10,AV30>=1),0.01,IF(AND(AV30<1,AV30>=0.1),0.001,0.0001))))),"0"),2) -> 15 | BU31: =ROUND(CEILING(BU30,IF(BU30>=100,1,IF(AND(BU30<100,BU30>=10),0.1,IF(AND(BU30<10,BU30>=1),0.01,IF(AND(BU30<1,BU30>=0.1),0.001,0.0001))))),2) -> 8.01 | BV31: =ROUND(IF(BU31>0,CEILING(BV30,IF(BV30>=100,1,IF(AND(BV30<100,BV30>=10),0.1,IF(AND(BV30<10,BV30>=1),0.01,IF(AND(BV30<1,BV30>=0.1),0.001,0.0001))))),"0"),2) -> 9.49 | CU31: =ROUND(CEILING(CU30,IF(CU30>=100,1,IF(AND(CU30<100,CU30>=10),0.1,IF(AND(CU30<10,CU30>=1),0.01,IF(AND(CU30<1,CU30>=0.1),0.001,0.0001))))),2) -> 6.7 | CV31: =ROUND(IF(CU31>0,CEILING(CV30,IF(CV30>=100,1,IF(AND(CV30<100,CV30>=10),0.1,IF(AND(CV30<10,CV30>=1),0.01,IF(AND(CV30<1,CV30>=0.1),0.001,0.0001))))),"0"),2) -> 6.64 | DU31: =ROUND(CEILING(DU30,IF(DU30>=100,1,IF(AND(DU30<100,DU30>=10),0.1,IF(AND(DU30<10,DU30>=1),0.01,IF(AND(DU30<1,DU30>=0.1),0.001,0.0001))))),2) -> 5.07 | DV31: =ROUND(IF(DU31>0,CEILING(DV30,IF(DV30>=100,1,IF(AND(DV30<100,DV30>=10),0.1,IF(AND(DV30<10,DV30>=1),0.01,IF(AND(DV30<1,DV30>=0.1),0.001,0.0001))))),"0"),2) -> 3.81
B32: Total flow | D32: =IF(OR(AX38&" "&$BA$2="0.0001 psi",AX38&" "&$BA$2="48.4 psi"),"0 psi",AX38&" "&$BA$2) -> 8.24 kPa | AF32: LL | AG32: KvF1 | AH32: KvF2 | AI32: KvF3 | AJ32: KvF4 | AM32: L34 | AN32: L23 | AO32: L12 | AP32: L01 | AQ32: Kv0 | AR32: Kv1 | AS32: Kv2 | AT32: Kv3 | AU32: Kv4 | AZ32: =$AM$2+6+MAX(MAX(MAX(MAX(AK4+$AM$2,AK9)+$AM$2,AK14)+$AM$2,AK19)+$AM$2,AK24) -> 21 | BB32: =$AI$2+AF33+MAX(MAX(MAX(DZ32+AF33,CZ32)+AF33,BZ32)+AF33,AZ32) -> 80 | BU32: =IF(BU6=0,0,IF(BV6>=Units!$F$38,Units!Z13,Data!BU6))+BU11+BU16+BU21+IF(BU26=0,0,IF(BV26>=Units!$F$38,Units!Z13,Data!BU26)) -> 8.03 | BZ32: =$AM$2+6+MAX(MAX(MAX(MAX(BK4+$AM$2,BK9)+$AM$2,BK14)+$AM$2,BK19)+$AM$2,BK24) -> 26 | CU32: =CU6+IF(CU11=0,0,IF(CV11>=Units!$F$38,Units!Z13,Data!CU11))+CU16+CU21+CU26 -> 6.71 | CZ32: =$AM$2+6+MAX(MAX(MAX(MAX(CK4+$AM$2,CK9)+$AM$2,CK14)+$AM$2,CK19)+$AM$2,CK24) -> 23 | DU32: =DU6+DU11+DU16+IF(DU21=0,0,IF(DV21>=Units!$F$38,Units!Z13,Data!DU21))+DU26 -> 5.09 | DZ32: =$AM$2+6+MAX(MAX(MAX(MAX(DK4+$AM$2,DK9)+$AM$2,DK14)+$AM$2,DK19)+$AM$2,DK24) -> 29
B33: =IF(OR(AK40&" "&AZ2="0.0001 GPM",AK40&" "&AZ2="0.0443 GPM"),"0 GPM",AK40&" "&AZ2) -> 29.9 GPM | AF33: =Units!$W$11 -> 12 | AG33: =AR29 -> 2.482263255 | AH33: =BR29 -> 2.36998992 | AI33: =CR29 -> 2.456144383 | AJ33: =DR29 -> 2.397125074 | AM33: =0.01*5*$AG$2/$AF$33^0.5 -> 2.9488165 | AN33: =0.01*10*$AG$2/$AF$33^0.5 -> 5.897633 | AO33: =0.01*15*$AG$2/$AF$33^0.5 -> 8.8464495 | AP33: =0.01*20*$AG$2/$AF$33^0.5 -> 11.795266 | AQ33: =1/(1/AR33^2+1/AO36^2+1/AP33^2+1/AM36^2)^0.5 -> 3.384029224 | AR33: =AG33+1/(1/AS33^2+1/AO33^2)^0.5 -> 7.363624732 | AS33: =AH33+1/(1/AT33^2+1/AN33^2)^0.5 -> 5.853059113 | AT33: =AI33+1/(1/AU33^2+1/AM33^2)^0.5 -> 4.316212598 | AU33: =AJ33 -> 2.397125074 | BB33: =BB32/$BC$2 -> 80
B34: =IF($AM38<=1,"0",$AM38) -> 165.640197 | C34: % | AO34: STAD | BB34: =CEILING(BB33,IF(BB33>=100,1,IF(AND(BB33<100,BB33>=10),0.1,IF(AND(BB33<10,BB33>=1),0.01,IF(AND(BB33<1,BB33>=0.1),0.001,0.0001))))) -> 80
B35: =IF(OR(AK42&" "&AZ2="0.0001 GPM",AK42&" "&AZ2="0.0443 GPM"),"0 GPM",AK42&" "&AZ2) -> 29.9 GPM | AF35: FALSE | AG35: Pos0 | AH35: ts | AJ35: Pos | AM35: Kvf | AO35: Kvso | AR35: q1 | AS35: q2 | AT35: q3 | AU35: q4 | AX35: STADo
AF36: 400 | AG36: =IF(AF35=TRUE,0,AF36) -> 400 | AH36: 81 | AJ36: =AG36/100+0.000001 -> 4.000001 | AM36: =0.01*3^0.5*20*$AG$2/AM41^0.5 -> 4.086 | AO36: =20*$AK$2*0.4/(4/AJ36-0.6)+10^-10 -> 23.59054674 | AR36: =100*AG33*AR39^0.5 -> 2281.499046 | AS36: =100*AH33*AS39^0.5 -> 1816.674043 | AT36: =100*AI33*AT39^0.5 -> 1519.300494 | AU36: =100*AJ33*AU39^0.5 -> 1150.584867 | AX36: =(0.01*AK38/AO36)^2 -> 8.230992168
AQ37: % | AR37: =100*AR36/5/$AG$2 -> 223.3479242 | AS37: =100*AS36/5/$AG$2 -> 177.8437634 | AT37: =100*AT36/5/$AG$2 -> 148.7323048 | AU37: =100*AU36/5/$AG$2 -> 112.6367956 | AX37: =AX36/$BC$2 -> 8.230992168
AF38: Pump head | AH38: =4/3*AM41 -> 400 | AJ38: qT= | AK38: =100*AQ33*AH38^0.5 -> 6768.058449 | AL38: q%= | AM38: =100*AK38/20/AG2 -> 165.640197 | AR38: P1 | AS38: P2 | AT38: P3 | AU38: P4 | AX38: =CEILING(AX37,IF(AX37>=100,1,IF(AND(AX37<100,AX37>=10),0.1,IF(AND(AX37<10,AX37>=1),0.01,IF(AND(AX37<1,AX37>=0.1),0.001,0.0001))))) -> 8.24
AK39: =$AK38/$AR$2 -> 29.81523546 | AR39: =AH38-(0.01*AK38)^2*(1/AP33^2+1/AO36^2+1/AM36^2) -> 84.47824944 | AS39: =AR39-(0.01*AS41/AO33)^2 -> 58.75719082 | AT39: =AS39-(0.01*AT41/AN33)^2 -> 38.26304883 | AU39: =AT39-(0.01*AU41/AM33)^2 -> 23.03859157
AF40: Pump head | AH40: =AH38-(0.01*AK38/AM36)^2 -> 125.6332514 | AK40: =CEILING(AK39,IF(AK39>=100,1,IF(AND(AK39<100,AK39>=10),0.1,IF(AND(AK39<10,AK39>=1),0.01,IF(AND(AK39<1,AK39>=0.1),0.001,0.0001))))) -> 29.9 | AR40: q10 | AS40: q12 | AT40: q23 | AU40: q34
AJ41: Nominal pump head | AM41: =AF44 -> 300 | AR41: =AK38 -> 6768.058449 | AS41: =AK38-AR36 -> 4486.559403 | AT41: =AS41-AS36 -> 2669.88536 | AU41: =AT41-AT36 -> 1150.584867
AK42: =AU49+BU32+CU32+DU32 -> 29.9 | AQ42: % | AR42: =AM38 -> 165.640197 | AS42: =100*AS41/15/$AG$2 -> 146.4042879 | AT42: =100*AT41/10/$AG$2 -> 130.6845502 | AU42: =100*AU41/5/$AG$2 -> 112.6367956
AF43: Pump | AJ43: Pump
AF44: 300 | AJ44: =AF44/$AS$2 -> 300
AF45: kPa | AH45: Opera. | AJ45: Units Dp
AF46: Dp | AG46: =AF44 -> 300 | AH46: =AH40 -> 125.6332514
AG47: =AG46/$BC$2 -> 300 | AH47: =AH46/$BC$2 -> 125.6332514 | AI47: =AI46/$BC$2 -> 0
AG48: =CEILING(AG47,IF(AG47>=100,1,IF(AND(AG47<100,AG47>=10),0.1,IF(AND(AG47<10,AG47>=1),0.01,IF(AND(AG47<1,AG47>=0.1),0.001,0.0001))))) -> 300 | AH48: =CEILING(AH47,IF(AH47>=100,1,IF(AND(AH47<100,AH47>=10),0.1,IF(AND(AH47<10,AH47>=1),0.01,IF(AND(AH47<1,AH47>=0.1),0.001,0.0001))))) -> 126 | AI48: =CEILING(AI47,IF(AI47>=100,1,IF(AND(AI47<100,AI47>=10),0.1,IF(AND(AI47<10,AI47>=1),0.01,IF(AND(AI47<1,AI47>=0.1),0.001,0.0001))))) -> 0
AU49: =AU6+AU11+IF(AU16=0,0,IF(AV16>=Units!$F$38,Units!Z13,Data!AU16))+AU21+AU26 -> 10.07
